{"text_format":"1","workbook":"xlsx","n_sheets":10,"sheets":["meta","Database","Encoding","PART 1 - Proficient","PART 1 - Highly Proficient","PART 2","PART 3","PART 4","divisions","rating"],"not_rendered":{"charts":0,"images":1,"macros":1,"external_links":0,"defined_names":65,"comments":0,"pivot_tables":0},"unopened":[],"bounds":{"document_bytes":16777216,"sheet_cells":100000,"rows_first":2000,"rows_last":500,"rows_between":2000,"halvings":0,"cell_chars":16384,"cell_head_chars":4096},"cells_cut":0,"cells_raw":0,"read":"whole","date_system":"1900"}

{"sheet":"meta","index":0,"n_rows":22,"n_cols":3,"rows_kept":22,"cut":false,"hidden":true,"merged":[]}
["property","value","value2"]
["consolidation_status",false]
["encoding_status",true,true]
["save_status",false,false]
["change_status",false,false]
["lock_password"]
["doc_type","IPCRF encoding"]
["version",2.1]
["school_classification",{"$f":"IF(TRIM(OR(Database!D2=\"Elementary\",Database!D2=\"Kindergarten\")),\"Elem\",IF(TRIM(Database!D2)=\"Junior High School\",\"JHS\",IF(TRIM(Database!D2)=\"Senior High School\",\"SHS\",\"\")))","v":""}]
["school_id",{"$f":"IF(Database!B2=\"\",\"\",Database!B2)","v":""}]
["COT1",false]
["COT2",false]
["COT3",false]
["COT4",false]
["PREV_classification"]
["PART4",true]
["SY","SY 2019-2020"]
["teacher_name",{"$f":"IF(ISBLANK(Database!J2),\"\",Database!J2)","v":""}]
["region",{"$f":"IF(ISBLANK(Database!GM2),\"\",Database!GM2)","v":""}]
["division",{"$f":"IF(ISBLANK(Database!A2),\"\",Database!A2)","v":""}]
["school_id",{"$f":"IF(ISBLANK(Database!B2),\"\",Database!B2)","v":""}]
["school_name",{"$f":"IF(ISBLANK(Database!C2),\"\",Database!C2)","v":""}]

{"sheet":"Database","index":1,"n_rows":2,"n_cols":207,"rows_kept":2,"cut":false,"hidden":true,"merged":[]}
["division","school_id","school_name","school_classification","rater","rater_position","date_of_review","rating_period","proficiency","name","position","teacher_id","subject_area","grade_level","COT1_subject","COT1_1","COT1_2","COT1_3","COT1_4","COT1_5","COT1_6","COT1_7","COT1_8","COT1_9","COT1_10","COT1_11","COT1_12","COT1_13","COT1_date","COT2_subject","COT2_1","COT2_2","COT2_3","COT2_4","COT2_5","COT2_6","COT2_7","COT2_8","COT2_9","COT2_10","COT2_11","COT2_12","COT2_13","COT2_date","COT3_subject","COT3_1","COT3_2","COT3_3","COT3_4","COT3_5","COT3_6","COT3_7","COT3_8","COT3_9","COT3_10","COT3_11","COT3_12","COT3_13","COT3_date","COT4_subject","COT4_1","COT4_2","COT4_3","COT4_4","COT4_5","COT4_6","COT4_7","COT4_8","COT4_9","COT4_10","COT4_11","COT4_12","COT4_13","COT4_date","COT_ave_1","COT_ave_2","COT_ave_3","COT_ave_4","COT_ave_5","COT_ave_6","COT_ave_7","COT_ave_8","COT_ave_9","COT_ave_10","COT_ave_11","COT_ave_12","COT_ave_13","Objective1Q","Objective1E","Objective1T","Objective2Q","Objective2E","Objective2T","Objective3Q","Objective3E","Objective3T","Objective4Q","Objective4E","Objective4T","Objective5Q","Objective5E","Objective5T","Objective6Q","Objective6E","Objective6T","Objective7Q","Objective7E","Objective7T","Objective8Q","Objective8E","Objective8T","Objective9Q","Objective9E","Objective9T","Objective10Q","Objective10E","Objective10T","Objective11Q","Objective11E","Objective11T","Objective12Q","Objective12E","Objective12T","Objective13Q","Objective13E","Objective13T","approving_authority","approving_authority_position","self_management_1","self_management_2","self_management_3","self_management_4","self_management_5","PE1","PE2","PE3","PE4","PE5","results_focus1","results_focus2","results_focus3","results_focus4","results_focus5","teamwork1","teamwork2","teamwork3","teamwork4","teamwork5","service_orientation1","service_orientation2","service_orientation3","service_orientation4","service_orientation5","innovation1","innovation2","innovation3","innovation4","innovation5","Part1_date_finalized","Part2_date_finalized","Objective1AVE","Objective1Score","Objective2AVE","Objective2Score","Objective3AVE","Objective3Score","Objective4AVE","Objective4Score","Objective5AVE","Objective5Score","Objective6AVE","Objective6Score","Objective7AVE","Objective7Score","Objective8AVE","Objective8Score","Objective9AVE","Objective9Score","Objective10AVE","Objective10Score","Objective11AVE","Objective11Score","Objective12AVE","Objective12Score","Objective13AVE","Objective13Score","RATING","Adjectival_rating","self_management","PE","results_focus","teamwork","service_orientation","innovation","Region","municipality","school_type","school_size","curricular_classification","employment_status","age","sex","level_taught","years_in_teaching","highest_degree","degree","specialization"]
[null,null,null,null,null,null,null,null,null,null,null,null,null,null,null,null,null,null,null,null,null,null,null,null,null,null,null,null,null,null,null,null,null,null,null,null,null,null,null,null,null,null,null,null,null,null,null,null,null,null,null,null,null,null,null,null,null,null,null,null,null,null,null,null,null,null,null,null,null,null,null,null,null,null,null,null,null,null,null,null,null,null,null,null,null,null,null,null,null,null,null,null,null,null,null,null,null,null,null,null,null,null,null,null,null,null,null,null,null,null,null,null,null,null,null,null,null,null,null,null,null,null,null,null,null,null,null,null,null,null,null,null,null,null,null,null,null,null,null,null,null,null,null,null,null,null,null,null,null,null,null,null,null,null,null,null,null,null,null,null,{"$f":"IFERROR(AVERAGE(database[[#This Row],[Objective1Q]:[Objective1T]]),0)","v":0},{"$f":"ROUNDDOWN(database[[#This Row],[Objective1AVE]]*7.5%, 3)","v":0},{"$f":"IFERROR(AVERAGE(database[[#This Row],[Objective2Q]:[Objective2T]]),0)","v":0},{"$f":"ROUNDDOWN(database[[#This Row],[Objective2AVE]]*7.5%, 3)","v":0},{"$f":"IFERROR(AVERAGE(database[[#This Row],[Objective3Q]:[Objective3T]]),0)","v":0},{"$f":"ROUNDDOWN(database[[#This Row],[Objective3AVE]]*7.5%,3)","v":0},{"$f":"IFERROR(AVERAGE(database[[#This Row],[Objective4Q]:[Objective4T]]),0)","v":0},{"$f":"ROUNDDOWN(database[[#This Row],[Objective4AVE]]*7.5%, 3)","v":0},{"$f":"IFERROR(AVERAGE(database[[#This Row],[Objective5Q]:[Objective5T]]),0)","v":0},{"$f":"ROUNDDOWN(database[[#This Row],[Objective5AVE]]*7.5%, 3)","v":0},{"$f":"IFERROR(AVERAGE(database[[#This Row],[Objective6Q]:[Objective6T]]),0)","v":0},{"$f":"ROUNDDOWN(database[[#This Row],[Objective6AVE]]*7.5%, 3)","v":0},{"$f":"IFERROR(AVERAGE(database[[#This Row],[Objective7Q]:[Objective7T]]),0)","v":0},{"$f":"ROUNDDOWN(database[[#This Row],[Objective7AVE]]*7.5%, 3)","v":0},{"$f":"IFERROR(AVERAGE(database[[#This Row],[Objective8Q]:[Objective8T]]),0)","v":0},{"$f":"ROUNDDOWN(database[[#This Row],[Objective8AVE]]*7.5%, 3)","v":0},{"$f":"IFERROR(AVERAGE(database[[#This Row],[Objective9Q]:[Objective9T]]),0)","v":0},{"$f":"ROUNDDOWN(database[[#This Row],[Objective9AVE]]*7.5%, 3)","v":0},{"$f":"IFERROR(AVERAGE(database[[#This Row],[Objective10Q]:[Objective10T]]),0)","v":0},{"$f":"ROUNDDOWN(database[[#This Row],[Objective10AVE]]*7.5%, 3)","v":0},{"$f":"IFERROR(AVERAGE(database[[#This Row],[Objective11Q]:[Objective11T]]),0)","v":0},{"$f":"ROUNDDOWN(database[[#This Row],[Objective11AVE]]*7.5%, 3)","v":0},{"$f":"IFERROR(AVERAGE(database[[#This Row],[Objective12Q]:[Objective12T]]),0)","v":0},{"$f":"ROUNDDOWN(database[[#This Row],[Objective12AVE]]*7.5%, 3)","v":0},{"$f":"IFERROR(AVERAGE(database[[#This Row],[Objective13Q]:[Objective13T]]),0)","v":0},{"$f":"ROUNDDOWN(database[[#This Row],[Objective13AVE]]*10%, 3)","v":0},{"$f":"SUM(database[[#This Row],[Objective1Score]],database[[#This Row],[Objective2Score]],database[[#This Row],[Objective3Score]],database[[#This Row],[Objective4Score]],database[[#This Row],[Objective5Score]],database[[#This Row],[Objective6Score]],database[[#This Row],[Objective7Score]],database[[#This Row],[Objective8Score]],database[[#This Row],[Objective9Score]],database[[#This Row],[Objective10Score]],database[[#This Row],[Objective11Score]],database[[#This Row],[Objective12Score]],database[[#This Row],[Objective13Score]])","v":0},{"$f":"IF(database[[#This Row],[RATING]]<1.499,\"Poor\",IF(database[[#This Row],[RATING]]<=2.499,\"Unsatisfactory\",IF(database[[#This Row],[RATING]]<=3.499,\"Satisfactory\",IF(database[[#This Row],[RATING]]<=4.499,\"Very Satisfactory\",IF(database[[#This Row],[RATING]]<=5,\"Outstanding\")))))","v":"Poor"},{"$f":"COUNTIF(database[[#This Row],[self_management_1]:[self_management_5]],TRUE)","v":0},{"$f":"COUNTIF(database[[#This Row],[PE1]:[PE5]],TRUE)","v":0},{"$f":"COUNTIF(database[[#This Row],[results_focus1]:[results_focus5]],TRUE)","v":0},{"$f":"COUNTIF(database[[#This Row],[teamwork1]:[teamwork5]],TRUE)","v":0},{"$f":"COUNTIF(database[[#This Row],[service_orientation1]:[service_orientation5]],TRUE)","v":0},{"$f":"COUNTIF(database[[#This Row],[innovation1]:[innovation5]],TRUE)","v":0}]

{"sheet":"Encoding","index":2,"n_rows":91,"n_cols":24,"rows_kept":91,"cut":false,"hidden":false,"merged":[[12,20,14,20],[28,19,28,20],[54,3,54,10],[43,3,43,10],[44,3,44,10],[39,2,39,10],[46,2,46,10],[47,3,47,10],[40,3,40,10],[41,3,41,10],[42,3,42,10],[12,19,14,19],[12,15,13,18],[12,2,14,2],[44,13,44,20],[28,14,28,18],[29,1,29,5],[29,6,29,7],[29,8,29,9],[29,10,29,11],[29,12,29,13],[33,4,33,8],[34,4,34,8],[33,0,33,3],[58,13,58,20],[53,12,53,20],[29,19,29,20],[39,12,39,20],[40,13,40,20],[41,13,41,20],[42,13,42,20],[43,13,43,20],[47,13,47,20],[29,14,29,18],[34,9,34,12],[55,3,55,10],[56,3,56,10],[57,3,57,10],[58,3,58,10],[48,3,48,10],[49,3,49,10],[50,3,50,10],[51,3,51,10],[53,2,53,10],[48,13,48,20],[46,12,46,20],[49,13,49,20],[50,13,50,20],[55,13,55,20],[56,13,56,20],[57,13,57,20],[51,13,51,20],[54,13,54,20],[38,2,38,20],[4,9,4,13],[5,9,5,13],[6,7,6,8],[12,14,14,14],[13,8,13,9],[13,10,13,11],[10,10,10,13],[6,14,6,16],[11,14,11,16],[11,17,11,20],[6,9,6,13],[34,0,34,3],[12,10,12,11],[12,12,12,13],[13,12,13,13],[10,1,10,2],[10,3,10,6],[8,1,8,2],[6,3,6,6],[11,3,11,6],[18,1,20,1],[12,3,14,3],[12,4,14,4],[13,6,13,7],[15,1,17,1],[12,1,14,1],[9,1,9,2],[9,3,9,6],[11,7,11,9],[6,1,6,2],[12,6,12,7],[12,8,12,9],[11,1,11,2],[7,3,7,6],[8,3,8,6],[8,7,8,9],[9,7,10,9],[7,1,7,2],[12,5,14,5],[0,0,0,20],[1,0,1,20],[3,1,3,2],[4,1,4,2],[5,1,5,2],[3,3,3,6],[4,3,4,6],[5,3,5,6],[2,0,2,20],[3,7,3,8],[4,7,4,8],[5,7,5,8],[3,14,3,16],[3,17,3,20],[4,14,4,16],[4,17,4,20],[5,14,5,16],[5,17,5,20],[3,9,3,13],[33,9,33,12],[28,1,28,5],[28,6,28,7],[28,8,28,9],[28,10,28,11],[28,12,28,13],[21,1,23,1],[24,1,26,1],[15,2,17,2],[18,2,20,2],[21,2,23,2],[24,2,26,2],[11,10,11,13],[10,17,10,20],[7,7,7,9],[8,10,8,13],[9,10,9,13],[7,10,7,13],[6,17,6,20],[7,14,7,16],[7,17,7,20],[8,14,8,16],[8,17,8,20],[9,14,9,16],[9,17,9,20],[10,14,10,16]]}
["IPCRF Rating Encoding Form"]
[{"$f":"IF($X$4=\"P\",\"Teacher I-III, SPET I-IV (Proficient Teacher)\",\"Master Teacher I-IV, SPET V (Highly Proficient Teacher)\")","v":"Teacher I-III, SPET I-IV (Proficient Teacher)"}]
["PART 1: INDIVIDUAL PERFORMANCE COMMITMENT AND REVIEW FORM"]
[null,"Name of Employee:",null,null,null,null,null,"Rater:",null,null,null,null,null,null,"Region:",null,null,null,null,null,null,null,null,{"$f":"IF(OR($D$5=\"SPET V\",$D$5=\"Master Teacher I\", $D$5=\"Master Teacher II\", $D$5=\"Master Teacher III\", $D$5=\"Master Teacher IV\",$D$5=\"Special Science Teacher III\",$D$5=\"Special Science Teacher IV\",$D$5=\"Special Science Teacher V\"),\"HP\",\"P\")","v":"P"}]
[null,"Position:",null,null,null,null,null,"Position:",null,null,null,null,null,null,"Division:"]
[null,"Employee ID #:",null,null,null,null,null,"Date of Review:",null,null,null,null,null,null,"District/Municipality:"]
[null,"Employment Status:",null,null,null,null,null,"Rating Period:",null,"SY 2019-2020",null,null,null,null,"School ID:"]
[null,"Age:",null,null,null,null,null,null,null,null,null,null,null,null,"School Name:"]
[null,"Sex:",null,null,null,null,null,"Number of Years in Teaching:",null,null,null,null,null,null,"School Type:"]
[null,"Level Taught:",null,null,null,null,null,"Highest Degree Obtained:",null,null,null,null,null,null,"School Size:"]
[null,"Grade Level Taught:",null,null,null,null,null,null,null,null,null,null,null,null,"Curricular Classification:"]
[null,"Subject Taught:",null,null,null,null,null,"Area of Specialization:",null,null,null,null,null,null,"Encoding Status:",null,null,{"$f":"IF(meta!B3,IF(meta!B4,IF(meta!B5,\"UNSAVED CHANGES\",\"SAVED\"),\"EDITING - NEW\"), \"LOCKED\")","v":"EDITING - NEW"}]
[null,"KRA","Weight per KRA","Objectives","Weight per Objective","COT Indicator No.","COT 1",null,"COT 2",null,"COT 3",null,"COT 4",null,"Ave","IPCRF Numerical Ratings",null,null,null,"Score","Adjectival\nRating"]
[]
[null,null,null,null,null,null,"Rating","RPMS 5-pt Scale","Rating","RPMS 5-pt Scale","Rating","RPMS 5-pt Scale","Rating","RPMS 5-pt Scale",null,"Q","E","T","Ave"]
[null,"KRA 1",0.22500000000000001,"Objective 1",7.4999999999999997E-2,1,null,{"$f":"IFERROR(VLOOKUP(G16,rating!$A$10:$B$14,2,FALSE),\"\")","v":""},null,{"$f":"IFERROR(VLOOKUP(I16,rating!$A$10:$B$14,2,FALSE),\"\")","v":""},null,{"$f":"IFERROR(VLOOKUP(K16,rating!$A$10:$B$14,2,FALSE),\"\")","v":""},null,{"$f":"IFERROR(VLOOKUP(M16,rating!$A$10:$B$14,2,FALSE),\"\")","v":""},{"$f":"ROUND(IFERROR(SUM(H16,J16,L16,N16)/INDEX(FREQUENCY((G16,I16,K16,M16),0),2),0),3)","v":0},{"$f":"IF(O16<=1.499,1,IF(O16<=2.499,2,IF(O16<=3.499,3,IF(O16<=4.499,4,IF(O16<=5,5)))))","v":1},null,null,{"$f":"IFERROR(AVERAGE(P16:R16),0)","v":1},{"$f":"ROUNDDOWN((S16*E16),3)","v":7.4999999999999997E-2},{"$f":"IF(ROUNDDOWN(S16,3)<1.499,\"Poor\",IF(ROUNDDOWN(S16,3)<=2.499,\"Unsatisfactory\",IF(ROUNDDOWN(S16,3)<=3.499,\"Satisfactory\",IF(ROUNDDOWN(S16,3)<=4.499,\"Very Satisfactory\",IF(ROUNDDOWN(S16,3)<=5,\"Outstanding\")))))","v":"Poor"}]
[null,null,null,"Objective 2",7.4999999999999997E-2,2,null,{"$f":"IFERROR(VLOOKUP(G17,rating!$A$10:$B$14,2,FALSE),\"\")","v":""},null,{"$f":"IFERROR(VLOOKUP(I17,rating!$A$10:$B$14,2,FALSE),\"\")","v":""},null,{"$f":"IFERROR(VLOOKUP(K17,rating!$A$10:$B$14,2,FALSE),\"\")","v":""},null,{"$f":"IFERROR(VLOOKUP(M17,rating!$A$10:$B$14,2,FALSE),\"\")","v":""},{"$f":"ROUND(IFERROR(SUM(H17,J17,L17,N17)/INDEX(FREQUENCY((G17,I17,K17,M17),0),2),0),3)","v":0},{"$f":"IF(O17<=1.499,1,IF(O17<=2.499,2,IF(O17<=3.499,3,IF(O17<=4.499,4,IF(O17<=5,5)))))","v":1},null,null,1,{"$f":"ROUNDDOWN((S17*E17),3)","v":7.4999999999999997E-2},{"$f":"IF(ROUNDDOWN(S17,3)<1.499,\"Poor\",IF(ROUNDDOWN(S17,3)<=2.499,\"Unsatisfactory\",IF(ROUNDDOWN(S17,3)<=3.499,\"Satisfactory\",IF(ROUNDDOWN(S17,3)<=4.499,\"Very Satisfactory\",IF(ROUNDDOWN(S17,3)<=5,\"Outstanding\")))))","v":"Poor"}]
[null,null,null,"Objective 3",7.4999999999999997E-2,3,null,{"$f":"IFERROR(VLOOKUP(G18,rating!$A$10:$B$14,2,FALSE),\"\")","v":""},null,{"$f":"IFERROR(VLOOKUP(I18,rating!$A$10:$B$14,2,FALSE),\"\")","v":""},null,{"$f":"IFERROR(VLOOKUP(K18,rating!$A$10:$B$14,2,FALSE),\"\")","v":""},null,{"$f":"IFERROR(VLOOKUP(M18,rating!$A$10:$B$14,2,FALSE),\"\")","v":""},{"$f":"ROUND(IFERROR(SUM(H18,J18,L18,N18)/INDEX(FREQUENCY((G18,I18,K18,M18),0),2),0),3)","v":0},1,null,null,1,7.4999999999999997E-2,"Poor"]
[null,"KRA 2",0.22500000000000001,"Objective 4",7.4999999999999997E-2,4,null,{"$f":"IFERROR(VLOOKUP(G19,rating!$A$10:$B$14,2,FALSE),\"\")","v":""},null,{"$f":"IFERROR(VLOOKUP(I19,rating!$A$10:$B$14,2,FALSE),\"\")","v":""},null,{"$f":"IFERROR(VLOOKUP(K19,rating!$A$10:$B$14,2,FALSE),\"\")","v":""},null,{"$f":"IFERROR(VLOOKUP(M19,rating!$A$10:$B$14,2,FALSE),\"\")","v":""},{"$f":"ROUND(IFERROR(SUM(H19,J19,L19,N19)/INDEX(FREQUENCY((G19,I19,K19,M19),0),2),0),3)","v":0},1,null,null,1,7.4999999999999997E-2,"Poor"]
[null,null,null,"Objective 5",7.4999999999999997E-2,5,null,{"$f":"IFERROR(VLOOKUP(G20,rating!$A$10:$B$14,2,FALSE),\"\")","v":""},null,{"$f":"IFERROR(VLOOKUP(I20,rating!$A$10:$B$14,2,FALSE),\"\")","v":""},null,{"$f":"IFERROR(VLOOKUP(K20,rating!$A$10:$B$14,2,FALSE),\"\")","v":""},null,{"$f":"IFERROR(VLOOKUP(M20,rating!$A$10:$B$14,2,FALSE),\"\")","v":""},{"$f":"ROUND(IFERROR(SUM(H20,J20,L20,N20)/INDEX(FREQUENCY((G20,I20,K20,M20),0),2),0),3)","v":0},1,null,null,1,7.4999999999999997E-2,"Poor"]
[null,null,null,"Objective 6",7.4999999999999997E-2,6,null,{"$f":"IFERROR(VLOOKUP(G21,rating!$A$10:$B$14,2,FALSE),\"\")","v":""},null,null,null,{"$f":"IFERROR(VLOOKUP(K21,rating!$A$10:$B$14,2,FALSE),\"\")","v":""},null,null,{"$f":"ROUND(IFERROR(SUM(H21,J21,L21,N21)/INDEX(FREQUENCY((G21,I21,K21,M21),0),2),0),3)","v":0},{"$f":"IF(O21<=1.499,1,IF(O21<=2.499,2,IF(O21<=3.499,3,IF(O21<=4.499,4,IF(O21<=5,5)))))","v":1},null,null,1,7.4999999999999997E-2,"Poor"]
[null,"KRA 3",0.22500000000000001,"Objective 7",7.4999999999999997E-2,7,null,{"$f":"IFERROR(VLOOKUP(G22,rating!$A$10:$B$14,2,FALSE),\"\")","v":""},null,{"$f":"IFERROR(VLOOKUP(I22,rating!$A$10:$B$14,2,FALSE),\"\")","v":""},null,{"$f":"IFERROR(VLOOKUP(K22,rating!$A$10:$B$14,2,FALSE),\"\")","v":""},null,{"$f":"IFERROR(VLOOKUP(M22,rating!$A$10:$B$14,2,FALSE),\"\")","v":""},{"$f":"ROUND(IFERROR(SUM(H22,J22,L22,N22)/INDEX(FREQUENCY((G22,I22,K22,M22),0),2),0),3)","v":0},1,null,null,1,7.4999999999999997E-2,"Poor"]
[null,null,null,"Objective 8",7.4999999999999997E-2,"",null,null,null,null,null,null,null,null,null,null,null,null,0,0,"Poor"]
[null,null,null,"Objective 9",7.4999999999999997E-2,8,null,null,null,{"$f":"IFERROR(VLOOKUP(I24,rating!$A$10:$B$14,2,FALSE),\"\")","v":""},null,null,null,null,{"$f":"ROUND(IFERROR(SUM(H24,J24,L24,N24)/INDEX(FREQUENCY((G24,I24,K24,M24),0),2),0),3)","v":0},{"$f":"IF(O24<=1.499,1,IF(O24<=2.499,2,IF(O24<=3.499,3,IF(O24<=4.499,4,IF(O24<=5,5)))))","v":1},null,null,1,7.4999999999999997E-2,"Poor"]
[null,"KRA 4",0.22500000000000001,"Objective 10",7.4999999999999997E-2,9,null,null,null,null,null,null,{"$f":"IF(X4=\"P\",7,\"\")","v":7},{"$f":"IFERROR(VLOOKUP(M25,rating!$A$10:$B$14,2,FALSE),\"\")","v":5},{"$f":"ROUND(IFERROR(SUM(H25,J25,L25,N25)/INDEX(FREQUENCY((G25,I25,K25,M25),0),2),0),3)","v":5},5,5,null,5,0.375,"Outstanding"]
[null,null,null,"Objective 11",7.4999999999999997E-2,"",null,null,null,null,null,null,null,null,null,null,null,null,0,{"$f":"ROUNDDOWN((S26*E26),3)","v":0},"Poor"]
[null,null,null,"Objective 12",7.4999999999999997E-2,"",null,null,null,null,null,null,null,null,null,null,null,null,0,{"$f":"ROUNDDOWN((S27*E27),3)","v":0},"Poor"]
[null,"Plus Factor",0.1,"Objective 13",0.1,"",null,null,null,null,null,null,null,null,null,null,null,null,0,0,"Poor"]
[null,"Date Observed:",null,null,null,null,null,null,null,null,null,null,null,null,"Final Rating",null,null,null,null,{"$f":"SUM(T16:T28)","v":0.97499999999999998}]
[null,null,null,null,null,null,null,null,null,null,null,null,null,null,"Adjectival Rating",null,null,null,null,{"$f":"IF(T29<1.499,\"Poor\",IF(T29<=2.499,\"Unsatisfactory\",IF(T29<=3.499,\"Satisfactory\",IF(T29<=4.499,\"Very Satisfactory\",IF(T29<=5,\"Outstanding\")))))","v":"Poor"}]
[]
[null,null,null,null,null,null,null,null,null,"Approving Authority:"]
[]
[]
[]
[]
[]
[]
[null,null,"PART 2: CORE BEHAVIORAL COMPETENCIES"]
[null,null,"Self-Management",null,null,null,null,null,null,null,null,null,"Teamwork"]
[null,null,{"$f":"\"1.\"","v":"1."},"Sets personal goals and directions, needs and development.",null,null,null,null,null,null,null,null,"1.","Willingly does his/her share of responsibility."]
[null,null,{"$f":"\"2.\"","v":"2."},"Undertakes personal actions and behavior that are clear and purposive and takes into account personal goals and values congruent to that of the organization.",null,null,null,null,null,null,null,null,"2.","Promotes collaboration and removes barrier to teamwork and goal accomplishment across the organization."]
[null,null,{"$f":"\"3.\"","v":"3."},"Displays emotional maturity and enthusiasm for and is challenged by higher goals.",null,null,null,null,null,null,null,null,"3.","Applies negotiation principles in arriving at win-win agreements."]
[null,null,{"$f":"\"4.\"","v":"4."},"Prioritizes work tasks and schedules (through Gantt chants, checklists, etc.) to achieve goals.",null,null,null,null,null,null,null,null,"4.","Drives consensus and team ownership of decisions."]
[null,null,{"$f":"\"5.\"","v":"5."},"Sets high quality, challenging, realistic goals for self and others.",null,null,null,null,null,null,null,null,"5.","Works constructively and collaboratively with others and across organizations to accomplish organization goals and objectives."]
[]
[null,null,"Professionalism and Ethics",null,null,null,null,null,null,null,null,null,"Service Orientation"]
[null,null,"1.","Demonstrates the values and behavior enshrined in the Norms and Conduct and Ethical Standards for Public Officials and Employees (RA 6713).",null,null,null,null,null,null,null,null,"1.","Can explain and articulate organizational directions, issues and problems."]
[null,null,"2.","Practices ethical and professional behavior and conduct taking into account the impact of his/her actions and decisions.",null,null,null,null,null,null,null,null,"2.","Takes personal responsibility for dealing with and/or correcting customer service issues and concerns."]
[null,null,"3.","Maintains a professional image: being trustworthy, regularity of attendance and punctuality, good grooming and communication.",null,null,null,null,null,null,null,null,"3.","Initiates activities that promote advocacy for men and women empowerment."]
[null,null,"4.","Makes personal sacrifices to meet the organization’s needs.",null,null,null,null,null,null,null,null,"4.","Participates in updating office vision, mission, mandates and strategies based on DepEd strategies and directions."]
[null,null,"5.","Acts with a sense of urgency and responsibility to meet the organization’s needs, improve system and help others improve their effectiveness.",null,null,null,null,null,null,null,null,"5.","Develops and adopts service improvement program through simplified procedures that will further enhance service delivery."]
[]
[null,null,"Results Focus",null,null,null,null,null,null,null,null,null,"Innovation"]
[null,null,"1.","Achieves results with optimal use of time and resources most of the time.",null,null,null,null,null,null,null,null,"1.","Examines the root cause of problems and suggests effective solutions. Foster new ideas, processes and suggests better ways to do things (cost and/or operational efficiency)."]
[null,null,"2.","Avoids rework, mistakes and wastage through effective work methods by placing organizational needs before personal needs.",null,null,null,null,null,null,null,null,"2.","Demonstrates an ability to think “beyond the box”. Continuously focuses on improving personal productivity to create higher value and results."]
[null,null,"3.","Delivers error-free outputs most of the time by conforming to standard operating procedures correctly and consistently. Able to produce very satisfactory quality work in terms of usefulness/acceptability and completeness with no supervision required.",null,null,null,null,null,null,null,null,"3.","Promotes a creative climate and inspires co-workers to develop original ideas or solutions."]
[null,null,"4.","Expresses a desire to do better and may express frustration at waste or inefficiency. May focus on new or more precise ways of meeting goals set.",null,null,null,null,null,null,null,null,"4.","Translates creative thinking into tangible changes and solutions that improve the work unit and organization."]
[null,null,"5.","Makes specific changes in the system or in own work methods to improve performance. Examples may include doing something better, faster, at a lower cost, more efficiently, or improving quality, customer satisfaction, morale, without setting any specific goal.",null,null,null,null,null,null,null,null,"5.","Uses ingenious methods to accomplish responsibilities. Demonstrates resourcefulness and the ability to succeed with minimal resources."]
[]
[]
[null,null,false,1,"Self-Management"]
[null,null,false,2,"Self-Management"]
[null,null,false,3,"Self-Management"]
[null,null,false,4,"Self-Management"]
[null,null,false,5,"Self-Management"]
[null,null,false,1,"Profeesionalism & Ethics"]
[null,null,false,2,"Profeesionalism & Ethics"]
[null,null,false,3,"Profeesionalism & Ethics"]
[null,null,false,4,"Profeesionalism & Ethics"]
[null,null,false,5,"Profeesionalism & Ethics"]
[null,null,false,1,"Results Focus"]
[null,null,false,2,"Results Focus"]
[null,null,false,3,"Results Focus"]
[null,null,false,4,"Results Focus"]
[null,null,false,5,"Results Focus"]
[null,null,false,1,"Teamwork"]
[null,null,false,2,"Teamwork"]
[null,null,false,3,"Teamwork"]
[null,null,false,4,"Teamwork"]
[null,null,false,5,"Teamwork"]
[null,null,false,1,"Service Orientation"]
[null,null,false,2,"Service Orientation"]
[null,null,false,3,"Service Orientation"]
[null,null,false,4,"Service Orientation"]
[null,null,false,5,"Service Orientation"]
[null,null,false,1,"Innovation"]
[null,null,false,2,"Innovation"]
[null,null,false,3,"Innovation"]
[null,null,false,4,"Innovation"]
[null,null,false,5,"Innovation"]

{"sheet":"PART 1 - Proficient","index":3,"n_rows":64,"n_cols":18,"rows_kept":64,"cut":false,"hidden":false,"merged":[[3,0,3,2],[3,3,3,8],[3,9,3,10],[3,11,3,16],[4,0,4,2],[4,3,4,8],[4,9,4,16],[0,0,0,16],[1,0,1,2],[1,3,1,8],[1,9,1,10],[1,11,1,16],[2,0,2,2],[2,3,2,8],[2,9,2,10],[2,11,2,16],[7,0,7,10],[7,11,7,16],[8,0,10,0],[8,1,10,1],[8,2,10,2],[8,3,10,3],[8,4,10,4],[8,5,8,10],[8,11,10,11],[8,12,9,15],[11,14,13,14],[11,15,13,15],[11,16,13,16],[11,12,13,12],[11,13,13,13],[8,16,10,16],[9,5,10,5],[11,2,13,2],[11,3,13,3],[17,14,19,14],[17,15,19,15],[17,16,19,16],[17,12,19,12],[17,13,19,13],[17,2,19,2],[17,3,19,3],[14,12,16,12],[14,13,16,13],[14,14,16,14],[14,15,16,15],[14,16,16,16],[14,3,16,3],[14,2,16,2],[20,1,28,1],[23,16,25,16],[23,12,25,12],[23,13,25,13],[23,14,25,14],[23,15,25,15],[23,3,25,3],[20,12,22,12],[20,13,22,13],[20,14,22,14],[20,15,22,15],[20,16,22,16],[26,12,28,12],[26,13,28,13],[26,14,28,14],[26,15,28,15],[26,16,28,16],[26,2,28,2],[26,3,28,3],[26,4,28,4],[20,2,22,2],[20,3,22,3],[20,4,25,4],[23,2,25,2],[29,15,31,15],[29,16,31,16],[29,2,31,2],[29,3,31,3],[29,4,31,4],[29,12,31,12],[29,13,31,13],[29,14,31,14],[29,1,37,1],[32,15,34,15],[32,16,34,16],[35,2,37,2],[35,3,37,3],[35,12,37,12],[35,13,37,13],[35,14,37,14],[35,15,37,15],[35,16,37,16],[32,2,34,2],[32,3,34,3],[32,4,37,4],[32,12,34,12],[32,13,34,13],[32,14,34,14],[38,1,46,1],[41,14,43,14],[41,15,43,15],[41,16,43,16],[41,12,43,12],[41,13,43,13],[38,13,40,13],[38,14,40,14],[38,15,40,15],[38,16,40,16],[44,12,46,12],[44,13,46,13],[44,14,46,14],[44,15,46,15],[44,16,46,16],[44,2,46,2],[44,3,46,3],[44,4,46,4],[41,2,43,2],[41,3,43,3],[38,2,40,2],[38,3,40,3],[38,4,43,4],[38,12,40,12],[47,14,49,14],[47,15,49,15],[47,16,49,16],[50,12,50,15],[47,1,49,1],[47,2,49,2],[47,3,49,3],[47,4,49,4],[50,9,50,11],[11,1,19,1],[11,4,19,4],[11,0,49,0],[62,1,62,4],[62,6,62,8],[62,10,62,14],[63,1,63,4],[63,6,63,8],[63,10,63,14],[55,0,55,1],[55,2,55,5],[56,0,56,1],[56,2,56,5],[57,0,57,1],[57,2,57,5],[51,0,51,5],[52,0,52,1],[52,2,52,5],[53,0,53,1],[53,2,53,5],[54,0,54,1],[54,2,54,5],[47,12,49,12],[47,13,49,13]]}
["INDIVIDUAL PERFORMANCE COMMITMENT AND REVIEW FORM (IPCRF) for Teacher I-III, SPET I-IV, Special Science Teacher I-II",null,null,null,null,null,null,null,null,null,null,null,null,null,null,null,null,"P"]
["Name of Employee:",null,null,{"$f":"IF(database[name]=\"\",\"\",database[name])","v":""},null,null,null,null,null,"Name of Rater:",null,{"$f":"IF(database[rater]=\"\",\"\",database[rater])","v":""}]
["Position:",null,null,{"$f":"IF(database[position]=\"\",\"\",database[position])","v":""},null,null,null,null,null,"Position:",null,{"$f":"IF(database[rater_position]=\"\",\"\",database[rater_position])","v":""}]
["Bureau/Center/Service/Division:",null,null,{"$f":"(database[school_name] & \" - \" & database[division])","v":" - "},null,null,null,null,null,"Date of Review:",null,{"$f":"IF(database[date_of_review]=\"\",\"\",database[date_of_review])","v":""}]
["Rating Period:",null,null,{"$f":"IF(database[rating_period]=\"\",\"\",database[rating_period])","v":""}]
[]
[]
["TO BE FILLED OUT DURING PLANNING ",null,null,null,null,null,null,null,null,null,null,"TO BE FILLED OUT DURING EVALUATION"]
["MFOs","KRAs","Objectives","Timeline","Weight per KRA","Performance Indicators",null,null,null,null,null,"Actual Results","Rating",null,null,null,"Score"]
[null,null,null,null,null,"QET","Outstanding","Very Satisfactory","Satisfactory","Unsatisfactory","Poor"]
[null,null,null,null,null,null,5,4,3,2,1,null,"Q","E","T","Ave"]
["Basic Education Services","1. Content Knowledge and Pedagogy","1. Applied knowledge of content within and across curriculum teaching areas.",{"$f":"$D$5","v":""},0.22500000000000001,"Quality","Showed knowledge of content and its integration within and across subject areas as shown in the Main MOV with a rating of 7","Showed knowledge of content and its integration within and across subject areas as shown in the Main MOV with a rating of 6","Showed knowledge of content and its integration within and across subject areas as shown in the Main MOV with a rating of 5","Showed knowledge of content and its integration within and across subject areas as shown in the Main MOV with a rating of 4","No acceptable evidence was shown",{"$f":"IFERROR(HLOOKUP(M12,G11:K12,2,FALSE),\"\")","v":""},{"$f":"IF(database[proficiency]=R1,database[Objective1Q],\"\")","v":""},{"$f":"IF(database[proficiency]=R1,database[Objective1E],\"\")","v":""},null,{"$f":"IF(database[proficiency]=R1,database[Objective1AVE],\"\")","v":""},{"$f":"IF(database[proficiency]=R1,database[Objective1Score],\"\")","v":""}]
[null,null,null,null,null,"Efficiency","Submitted 4 Main MOV, each with any 1 of the Supporting MOV","Submitted 3 Main MOV, each with any 1 of the Supporting MOV","Submitted 2 Main MOV, each with any 1 of the Supporting MOV","Submitted 1 Main MOV with any 1 of the Supporting MOV","No acceptable evidence was shown",{"$f":"IFERROR(HLOOKUP(N12,G11:K13,3,FALSE),\"\")","v":""}]
[null,null,null,null,null,"Timeliness"]
[null,null,"2. Used a range of teaching strategies that enhance learner achievement in literacy and numeracy skills.",{"$f":"$D$5","v":""},null,"Quality","Facilitated using different teaching strategies that promote reading, writing and/or numeracy skills as shown in the Main MOV with a rating of 7","Facilitated using different teaching strategies that promote reading, writing and/or numeracy skills as shown in the Main MOV with a rating of 6","Facilitated using different teaching strategies that promote reading, writing and/or numeracy skills as shown in the Main MOV with a rating of 5","Facilitated using different teaching strategies that promote reading, writing and/or numeracy skills as shown in the Main MOV with a rating of 4","No acceptable evidence was shown",{"$f":"IFERROR(HLOOKUP(M15,$G$11:$K15,5,FALSE),\"\")","v":""},{"$f":"IF(database[proficiency]=R1,database[Objective2Q],\"\")","v":""},{"$f":"IF(database[proficiency]=R1,database[Objective2E],\"\")","v":""},null,{"$f":"IF(database[proficiency]=R1,database[Objective2AVE],\"\")","v":""},{"$f":"IF(database[proficiency]=R1,database[Objective2Score],\"\")","v":""}]
[null,null,null,null,null,"Efficiency","Submitted 4 Main MOV, each with any 1 of the Supporting MOV","Submitted 3 Main MOV, each with any 1 of the Supporting MOV","Submitted 2 Main MOV, each with any 1 of the Supporting MOV","Submitted 1 Main MOV with any 1 of the Supporting MOV","No acceptable evidence was shown",{"$f":"IFERROR(HLOOKUP(N15,$G$11:$K16,6,FALSE),\"\")","v":""}]
[null,null,null,null,null,"Timeliness"]
[null,null,"3. Applied a range of teaching strategies to develop critical and creative thinking, as well as other higher-order thinking skills.",{"$f":"$D$5","v":""},null,"Quality","Used different teaching strategies that develop critical and/or creative thinking, as well as other HOTS as shown in the Main MOV with a rating of 7","Used different teaching strategies that develop critical and/or creative thinking, as well as other HOTS as shown in the Main MOV with a rating of 6","Used different teaching strategies that develop critical and/or creative thinking, as well as other HOTS as shown in the Main MOV with a rating of 5","Used different teaching strategies that develop critical and/or creative thinking, as well as other HOTS as shown in the Main MOV with a rating of 4","No acceptable evidence was shown",{"$f":"IFERROR(HLOOKUP(M18,G11:K18,8,FALSE),\"\")","v":""},{"$f":"IF(database[proficiency]=R1,database[Objective3Q],\"\")","v":""},{"$f":"IF(database[proficiency]=R1,database[Objective3E],\"\")","v":""},null,{"$f":"IF(database[proficiency]=R1,database[Objective3AVE],\"\")","v":""},{"$f":"IF(database[proficiency]=R1,database[Objective3Score],\"\")","v":""}]
[null,null,null,null,null,"Efficiency","Submitted 4 Main MOV, each with any 1 of the Supporting MOV","Submitted 3 Main MOV, each with any 1 of the Supporting MOV","Submitted 2 Main MOV, each with any 1 of the Supporting MOV","Submitted 1 Main MOV with any 1 of the Supporting MOV","No acceptable evidence was shown",{"$f":"IFERROR(HLOOKUP(N18,G11:K19,9,FALSE),\"\")","v":""}]
[null,null,null,null,null,"Timeliness"]
[null,"2. Learning Environment and Diversity of Learners","4. Managed classroom structure to engage learners, individually or in groups, in meaningful exploration, discovery and hands-on activities within a range of physical learning environments. ",{"$f":"$D$5","v":""},0.22500000000000001,"Quality","Used classroom management strategies that engage learners  in activities/ tasks as shown in the Main MOV with a rating of 7 ","Used classroom management strategies that engage learners  in activities/ tasks as shown in the Main MOV with a rating of 6 ","Used classroom management strategies that engage learners  in activities/ tasks as shown in the Main MOV with a rating of 5","Used classroom management strategies that engage learners  in activities/ tasks as shown in the Main MOV with a rating of 4","No acceptable evidence was shown",{"$f":"IFERROR(HLOOKUP(M21,G11:K21,11,FALSE),\"\")","v":""},{"$f":"IF(database[proficiency]=R1,database[Objective4Q],\"\")","v":""},{"$f":"IF(database[proficiency]=R1,database[Objective4E],\"\")","v":""},null,{"$f":"IF(database[proficiency]=R1,database[Objective4AVE],\"\")","v":""},{"$f":"IF(database[proficiency]=R1,database[Objective4Score],\"\")","v":""}]
[null,null,null,null,null,"Efficiency","Submitted 4 Main MOV, each with any 1 of the Supporting MOV","Submitted 3 Main MOV, each with any 1 of the Supporting MOV","Submitted 2 Main MOV, each with any 1 of the Supporting MOV","Submitted 1 Main MOV with any 1 of the Supporting MOV","No acceptable evidence was shown",{"$f":"IFERROR(HLOOKUP(N21,G11:K22,12,FALSE),\"\")","v":""}]
[null,null,null,null,null,"Timeliness"]
[null,null,"5. Managed learner behavior constructively by applying positive and non-violent discipline to ensure learning-focused environments.",{"$f":"$D$5","v":""},null,"Quality","Applied teacher management strategies of learner behavior that promote  positive and non-violent discipline as shown in the MOV with a rating of 7","Applied teacher management strategies of learner behavior that promote  positive and non-violent discipline as shown in the MOV with a rating of 6","Applied teacher management strategies of learner behavior that promote  positive and non-violent discipline as shown in the MOV with a rating of 5","Applied teacher management strategies of learner behavior that promote  positive and non-violent discipline as shown in the MOV with a rating of 4","No acceptable evidence was shown",{"$f":"IFERROR(HLOOKUP(M24,G11:K24,14,FALSE),\"\")","v":""},{"$f":"IF(database[proficiency]=R1,database[Objective5Q],\"\")","v":""},{"$f":"IF(database[proficiency]=R1,database[Objective5E],\"\")","v":""},null,{"$f":"IF(database[proficiency]=R1,database[Objective5AVE],\"\")","v":""},{"$f":"IF(database[proficiency]=R1,database[Objective5Score],\"\")","v":""}]
[null,null,null,null,null,"Efficiency","Submitted 4 COT rating sheets/inter- observer agreement forms, each with 4 strategies as noted in the comment section ","Submitted 3 COT rating sheets/inter- observer agreement forms, each with 4 strategies as noted in the comment section ","Submitted 2 COT rating sheets/inter- observer agreement forms, each with 4 strategies as noted in the comment section ","Submitted 1 COT rating sheet/inter- observer agreement form with any 1 of the given strategies as noted in the comment section ","No acceptable evidence was shown",{"$f":"IFERROR(HLOOKUP(N24,G11:K25,15,FALSE),\"\")","v":""}]
[null,null,null,null,null,"Timeliness"]
[null,null,"6. Used differentiated, developmentally appropriate learning experiences to address learners’ gender, needs, strengths, interests and experiences.",{"$f":"$D$5","v":""},null,"Quality","Applied differentiated teaching strategies to address learner diversity as shown in the Main MOV with a rating of 7","Applied differentiated teaching strategies to address learner diversity as shown in the Main MOV with a rating of 6","Applied differentiated teaching strategies to address learner diversity as shown in the Main MOV with a rating of 5","Applied differentiated teaching strategies to address learner diversity as shown in the Main MOV with a rating of 4","No acceptable evidence was shown",{"$f":"IFERROR(HLOOKUP(M27,G11:K27,17,FALSE),\"\")","v":""},{"$f":"IF(database[proficiency]=R1,database[Objective6Q],\"\")","v":""},{"$f":"IF(database[proficiency]=R1,database[Objective6E],\"\")","v":""},null,{"$f":"IF(database[proficiency]=R1,database[Objective6AVE],\"\")","v":""},{"$f":"IF(database[proficiency]=R1,database[Objective6Score],\"\")","v":""}]
[null,null,null,null,null,"Efficiency","Submitted 2 Main MOV with 4 differentiated teaching strategies as observed in 2 lessons, each with any 1 of the Supporting MOV","Submitted 2 Main MOV with 3 differentiated teaching strategies as observed in 2 lessons, each with any 1 of the Supporting MOV","Submitted 2 Main MOV with 2 differentiated teaching strategies as observed in 2 lessons, each with any 1 of the Supporting MOV","Submitted 1 Main MOV with 1 differentiated teaching strategy as observed in 1 lesson with any 1 of the Supporting MOV","No acceptable evidence was shown",{"$f":"IFERROR(HLOOKUP(N27,G11:K28,18,FALSE),\"\")","v":""}]
[null,null,null,null,null,"Timeliness"]
[null,"3. Curriculum and Planning","7. Planned, managed and implemented developmentally sequenced teaching and learning processes to meet curriculum requirements and varied teaching contexts.",{"$f":"$D$5","v":""},0.22500000000000001,"Quality","Planned and implemented developmentally sequenced teaching and learning process as shown in the Main MOV with a rating of 7","Planned and implemented developmentally sequenced teaching and learning process as shown in the Main MOV with a rating of 6","Planned and implemented developmentally sequenced teaching and learning process as shown in the Main MOV with a rating of 5","Planned and implemented developmentally sequenced teaching and learning process as shown in the Main MOV with a rating of 4","No acceptable evidence was shown",{"$f":"IFERROR(HLOOKUP(M30,G11:K30,20,FALSE),\"\")","v":""},{"$f":"IF(database[proficiency]=R1,database[Objective7Q],\"\")","v":""},{"$f":"IF(database[proficiency]=R1,database[Objective7E],\"\")","v":""},null,{"$f":"IF(database[proficiency]=R1,database[Objective7AVE],\"\")","v":""},{"$f":"IF(database[proficiency]=R1,database[Objective7Score],\"\")","v":""}]
[null,null,null,null,null,"Efficiency","Submitted 4 Main MOV, each with any 1 of the Supporting MOV","Submitted 3 Main MOV, each with any 1 of the Supporting MOV","Submitted 2 Main MOV, each with any 1 of the Supporting MOV","Submitted 1 Main MOV with any 1 of the Supporting MOV","No acceptable evidence was shown",{"$f":"IFERROR(HLOOKUP(N30,G11:K31,21,FALSE),\"\")","v":""}]
[null,null,null,null,null,"Timeliness"]
[null,null,"8. Participated in collegial discussions that use teacher and learner feedback to enrich teaching practice.",{"$f":"$D$5","v":""},null,"Quality","Consistently participated in LAC sessions/FGDs/ meetings to discuss teacher/learner feedback to enrich instruction as shown in the MOV submitted","Frequently participated in LAC sessions/FGDs/ meetings to discuss teacher/learner feedback to enrich instruction as shown in the MOV submitted","Occasionally participated in LAC sessions/FGDs/ meetings to discuss teacher/learner feedback to enrich instruction as shown in the MOV submitted","Rarely participated in LAC sessions/FGDs/ meeting to discuss teacher/learner feedback to enrich instruction as shown in the MOV submitted","No acceptable evidence was shown",{"$f":"IFERROR(HLOOKUP(M33,G11:K33,23,FALSE),\"\")","v":""},{"$f":"IF(database[proficiency]=R1,database[Objective8Q],\"\")","v":""},{"$f":"IF(database[proficiency]=R1,database[Objective8E],\"\")","v":""},null,{"$f":"IF(database[proficiency]=R1,database[Objective8AVE],\"\")","v":""},{"$f":"IF(database[proficiency]=R1,database[Objective8Score],\"\")","v":""}]
[null,null,null,null,null,"Efficiency","Participated in 4 LAC sessions/\nFGDs/meetings on teacher/ learner feedback as evidently shown in the MOV submitted","Participated in 3 LAC sessions/\nFGDs/meetings on teacher/learner feedback as evidently shown in the MOV submitted","Participated in 2 LAC sessions/\nFGDs/meetings on teacher/ learner feedback as evidently shown in the MOV submitted","Participated in 1 LAC session/FGD/ meeting on teacher/ learner feedback as evidently shown in the MOV submitted","No acceptable evidence was shown",{"$f":"IFERROR(HLOOKUP(N33,G11:K34,24,FALSE),\"\")","v":""}]
[null,null,null,null,null,"Timeliness"]
[null,null,"9. Selected, developed, organized and used appropriate teaching and learning resources, including ICT, to address learning goals.",{"$f":"$D$5","v":""},null,"Quality","Developed and used varied teaching and learning resources, including ICT, to address learning goals as shown in the Main MOV with a rating of 7","Developed and used varied teaching and learning resources, including ICT, to address learning goals as shown in the Main MOV with a rating of 6","Developed and used varied teaching and learning resources, including ICT, to address learning goals as shown in the Main MOV with a rating of 5","Developed and used varied teaching and learning resources, including ICT, to address learning goals as shown in the Main MOV with a rating of 4","No acceptable evidence was shown",{"$f":"IFERROR(HLOOKUP(M36,G11:K36,26,FALSE),\"\")","v":""},{"$f":"IF(database[proficiency]=R1,database[Objective9Q],\"\")","v":""},{"$f":"IF(database[proficiency]=R1,database[Objective9E],\"\")","v":""},null,{"$f":"IF(database[proficiency]=R1,database[Objective9AVE],\"\")","v":""},{"$f":"IF(database[proficiency]=R1,database[Objective9Score],\"\")","v":""}]
[null,null,null,null,null,"Efficiency","Submitted 1 Main MOV with 4 varied teaching and learning resources, including ICT, as shown in 1 Supporting MOV","Submitted 1 Main MOV with 3 varied teaching and learning resources, including ICT, as shown in 1 Supporting MOV","Submitted 1 Main MOV with 2 varied teaching and learning resources, including ICT, as shown in 1 Supporting MOV","Submitted 1 Main MOV with 1 teaching and learning resource, including ICT, as shown in 1 Supporting MOV","No acceptable evidence was shown",{"$f":"IFERROR(HLOOKUP(N36,G11:K37,27,FALSE),\"\")","v":""}]
[null,null,null,null,null,"Timeliness"]
[null,"4. Assessment and Reporting","10. Designed, selected, organized and used diagnostic, formative and summative assessment strategies consistent with curriculum requirements.",{"$f":"$D$5","v":""},0.22500000000000001,"Quality","Designed, selected, organized and used diagnostic, formative and summative assessment strategies consistent with curriculum requirements as shown in the Main MOV with a rating of 7","Designed, selected, organized and used diagnostic, formative and summative assessment strategies consistent with curriculum requirements as shown in the Main MOV with a rating of 6","Designed, selected, organized and used diagnostic, formative and summative assessment strategies consistent with curriculum requirements as shown in the Main MOV with a rating of 5","Designed, selected, organized and used diagnostic, formative and summative assessment strategies consistent with curriculum requirements as shown in the Main MOV with a rating of 4","No acceptable evidence was shown",{"$f":"IFERROR(HLOOKUP(M39,G11:K39,29,FALSE),\"\")","v":""},{"$f":"IF(database[proficiency]=R1,database[Objective10Q],\"\")","v":""},{"$f":"IF(database[proficiency]=R1,database[Objective10E],\"\")","v":""},null,{"$f":"IF(database[proficiency]=R1,database[Objective10AVE],\"\")","v":""},{"$f":"IF(database[proficiency]=R1,database[Objective10Score],\"\")","v":""}]
[null,null,null,null,null,"Efficiency","Submitted 1 Main MOV with 4 varied assessment strategies as shown in any Supporting MOV","Submitted 1 Main MOV with 3 varied assessment strategies as shown in any Supporting MOV","Submitted 1 Main MOV with 2 varied assessment strategies as shown in any Supporting MOV","Submitted 1 Main MOV with 1 assessment strategy as shown in any Supporting MOV","No acceptable evidence was shown",{"$f":"IFERROR(HLOOKUP(N39,G11:K40,30,FALSE),\"\")","v":""}]
[null,null,null,null,null,"Timeliness"]
[null,null,"11. Monitored and evaluated learner progress and achievement using learner attainment data.",{"$f":"$D$5","v":""},null,"Quality","Consistently monitored and evaluated learner progress and achievement using learner attainment data as shown in the MOV submitted","Frequently monitored and evaluated learner progress and achievement using learner attainment data as shown in the MOV submitted","Occasionally  monitored and evaluated learner progress and achievement using learner attainment data as shown in the MOV submitted","Rarely monitored and evaluated learner progress and achievement using learner attainment data as shown in the MOV submitted","No acceptable evidence was shown ",{"$f":"IFERROR(HLOOKUP(M42,G11:K42,32,FALSE),\"\")","v":""},{"$f":"IF(database[proficiency]=R1,database[Objective11Q],\"\")","v":""},{"$f":"IF(database[proficiency]=R1,database[Objective11E],\"\")","v":""},{"$f":"IF(database[proficiency]=R1,database[Objective11T],\"\")","v":""},{"$f":"IF(database[proficiency]=R1,database[Objective11AVE],\"\")","v":""},{"$f":"IF(database[proficiency]=R1,database[Objective11Score],\"\")","v":""}]
[null,null,null,null,null,"Efficiency","Submitted 4 different kinds of acceptable MOV","Submitted 3 different kinds of acceptable MOV","Submitted 2 different kinds of acceptable MOV","Submitted any 1 of the acceptable MOV","No acceptable evidence was shown",{"$f":"IFERROR(HLOOKUP(N42,G11:K43,33,FALSE),\"\")","v":""}]
[null,null,null,null,null,"Timeliness","Submitted MOV were distributed across 4 quarters","Submitted MOV were distributed across 3 quarters","Submitted MOV were distributed across 2 quarters","Submitted MOV was completed in only 1 quarter","No acceptable evidence was shown",{"$f":"IFERROR(HLOOKUP(O42,G11:K44,34,FALSE),\"\")","v":""}]
[null,null,"12. Communicated promptly and clearly the learners’ needs, progress and achievement to key stakeholders, including parents/guardians.",{"$f":"$D$5","v":""},null,"Quality","Consistently showed prompt and clear  communication of the learners’ needs, progress and achievement to key stakeholders, including parents/ guardians as shown in the MOV submitted","Frequently showed prompt and clear  communication of the learners’ needs, progress and achievement to key stakeholders, including parents/ guardians as shown in the MOV submitted","Occasionally showed prompt and clear  communication of the learners’ needs, progress and achievement to key stakeholders, including parents/ guardians as shown in the MOV submitted","Rarely showed prompt and clear  communication of the learners’ needs, progress and achievement to key stakeholders, including parents/ guardians as shown in the MOV submitted","No acceptable evidence was shown",{"$f":"IFERROR(HLOOKUP(M45,G11:K45,35,FALSE),\"\")","v":""},{"$f":"IF(database[proficiency]=R1,database[Objective12Q],\"\")","v":""},{"$f":"IF(database[proficiency]=R1,database[Objective12E],\"\")","v":""},{"$f":"IF(database[proficiency]=R1,database[Objective12T],\"\")","v":""},{"$f":"IF(database[proficiency]=R1,database[Objective12AVE],\"\")","v":""},{"$f":"IF(database[proficiency]=R1,database[Objective12Score],\"\")","v":""}]
[null,null,null,null,null,"Efficiency","Submitted 4 different kinds of acceptable MOV","Submitted 3 different kinds of acceptable MOV","Submitted 2 different kinds of acceptable MOV","Submitted any 1 of the acceptable MOV","No acceptable evidence was shown",{"$f":"IFERROR(HLOOKUP(N45,G11:K46,36,FALSE),\"\")","v":""}]
[null,null,null,null,null,"Timeliness","Submitted MOV were distributed across 4 quarters","Submitted MOV were distributed across 3 quarters","Submitted MOV were distributed across 2 quarters","Submitted MOV was completed in only 1 quarter","No acceptable evidence was shown",{"$f":"IFERROR(HLOOKUP(O45,G11:K47,37,FALSE),\"\")","v":""}]
[null,"5. Plus Factor","13. Performed various related works/activities that contribute to the teaching-learning process.",{"$f":"$D$5","v":""},0.1,"Quality","Consistently performed various related work/activities that contribute to the teaching learning process as shown in the MOV submitted","Frequently performed various related work/activities that contribute to the teaching learning process as shown in the MOV submitted","Occasionally performed various related work/activities that contribute to the teaching learning process as shown in the MOV submitted","Rarely performed various related work/activities that contribute to the teaching learning process as shown in the MOV submitted","No acceptable evidence was shown",{"$f":"IFERROR(HLOOKUP(M48,G11:K48,38,FALSE),\"\")","v":""},{"$f":"IF(database[proficiency]=R1,database[Objective13Q],\"\")","v":""},{"$f":"IF(database[proficiency]=R1,database[Objective13E],\"\")","v":""},null,{"$f":"IF(database[proficiency]=R1,database[Objective13AVE],\"\")","v":""},{"$f":"IF(database[proficiency]=R1,database[Objective13Score],\"\")","v":""}]
[null,null,null,null,null,"Efficiency","Submitted 4 different kinds of acceptable MOV","Submitted 3 different kinds of acceptable MOV","Submitted 2 different kinds of acceptable MOV","Submitted any 1 of the acceptable MOV","No acceptable evidence was shown",{"$f":"IFERROR(HLOOKUP(N48,G11:K49,39,FALSE),\"\")","v":""}]
[null,null,null,null,null,"Timeliness"]
[null,null,null,null,null,null,null,null,null,"RATING FOR OVERALL ACCOMPLISHMENTS",null,null,{"$f":"IF(database[proficiency]=R1,database[Adjectival_rating],\"\")","v":""},{"$f":"IF(M51<1.499,\"Poor\",IF(M51<=2.499,\"Unsatisfactory\",IF(M51<=3.499,\"Satisfactory\",IF(M51<=4.499,\"Very Satisfactory\",IF(M51<=5,\"Outstanding\")))))","v":false},{"$f":"IF(N51<1.499,\"Poor\",IF(N51<=2.499,\"Unsatisfactory\",IF(N51<=3.499,\"Satisfactory\",IF(N51<=4.499,\"Very Satisfactory\",IF(N51<=5,\"Outstanding\")))))","v":false},{"$f":"IF(O51<1.499,\"Poor\",IF(O51<=2.499,\"Unsatisfactory\",IF(O51<=3.499,\"Satisfactory\",IF(O51<=4.499,\"Very Satisfactory\",IF(O51<=5,\"Outstanding\")))))","v":false},{"$f":"IF(database[proficiency]=R1,database[RATING],\"\")","v":""}]
["ADJECTIVAL RATING EQUIVALENCES"]
["RANGE ",null,"ADJECTIVAL RATING"]
["4.500 – 5.000 ",null,"Outstanding"]
["3.500 – 4.499 ",null,"Very Satisfactory"]
["2.500 – 3.499 ",null,"Satisfactory"]
["1.500 – 2.499 ",null,"Unsatisfactory"]
["below 1.499",null,"Poor"]
[]
[]
[]
[]
[null,{"$f":"IF(database[name]=\"\",\"\",database[name])","v":""},null,null,null,null,{"$f":"IF(database[rater]=\"\",\"\",database[rater])","v":""},null,null,null,{"$f":"IF(database[approving_authority]=\"\",\"\",database[approving_authority])","v":""}]
[null,"Ratee",null,null,null,null,"Rater",null,null,null,"Approving Authority"]

{"sheet":"PART 1 - Highly Proficient","index":4,"n_rows":66,"n_cols":18,"rows_kept":66,"cut":false,"hidden":true,"merged":[[38,1,46,1],[64,11,64,16],[65,1,65,4],[65,7,65,9],[65,11,65,16],[11,0,49,0],[29,1,37,1],[20,1,28,1],[11,1,19,1],[50,9,50,11],[58,0,58,1],[58,2,58,5],[59,0,59,1],[59,2,59,5],[64,1,64,4],[64,7,64,9],[55,0,55,1],[55,2,55,5],[56,0,56,1],[56,2,56,5],[57,0,57,1],[57,2,57,5],[47,15,49,15],[47,16,49,16],[50,12,50,15],[53,0,53,5],[54,0,54,1],[54,2,54,5],[47,1,49,1],[47,2,49,2],[47,3,49,3],[47,4,49,4],[47,12,49,12],[47,13,49,13],[47,14,49,14],[44,15,46,15],[44,16,46,16],[41,14,43,14],[41,15,43,15],[41,16,43,16],[44,2,46,2],[44,3,46,3],[44,12,46,12],[44,13,46,13],[44,14,46,14],[41,12,43,12],[41,13,43,13],[38,4,46,4],[41,2,43,2],[41,3,43,3],[38,15,40,15],[38,16,40,16],[35,15,37,15],[35,16,37,16],[38,2,40,2],[38,3,40,3],[38,12,40,12],[38,13,40,13],[38,14,40,14],[35,2,37,2],[35,3,37,3],[35,12,37,12],[35,13,37,13],[35,14,37,14],[29,4,37,4],[32,15,34,15],[32,16,34,16],[29,13,31,13],[29,14,31,14],[29,15,31,15],[29,16,31,16],[32,2,34,2],[32,3,34,3],[32,12,34,12],[32,13,34,13],[32,14,34,14],[29,2,31,2],[29,3,31,3],[29,12,31,12],[23,2,25,2],[23,3,25,3],[26,2,28,2],[20,14,22,14],[20,15,22,15],[20,16,22,16],[20,12,22,12],[20,13,22,13],[20,2,22,2],[20,3,22,3],[26,16,28,16],[26,12,28,12],[26,13,28,13],[26,14,28,14],[26,15,28,15],[26,3,28,3],[23,12,25,12],[23,13,25,13],[23,14,25,14],[23,15,25,15],[23,16,25,16],[20,4,28,4],[17,12,19,12],[17,13,19,13],[17,14,19,14],[17,15,19,15],[17,16,19,16],[17,2,19,2],[17,3,19,3],[14,14,16,14],[14,15,16,15],[14,16,16,16],[14,12,16,12],[14,13,16,13],[11,4,19,4],[11,14,13,14],[11,15,13,15],[11,16,13,16],[14,2,16,2],[14,3,16,3],[11,12,13,12],[11,13,13,13],[8,16,10,16],[9,5,10,5],[11,2,13,2],[11,3,13,3],[7,0,7,10],[7,11,7,16],[8,0,10,0],[8,1,10,1],[8,2,10,2],[8,3,10,3],[8,4,10,4],[8,5,8,10],[8,11,10,11],[8,12,9,15],[3,0,3,2],[3,3,3,7],[3,8,3,9],[3,10,3,16],[4,0,4,2],[4,3,4,7],[4,8,4,16],[0,0,0,16],[1,0,1,2],[1,3,1,7],[1,8,1,9],[1,10,1,16],[2,0,2,2],[2,3,2,7],[2,8,2,9],[2,10,2,16]]}
["INDIVIDUAL PERFORMANCE COMMITMENT AND REVIEW FORM (IPCRF) for Master Teacher I-IV, SPET V, SPECIAL SCIENCE TEACHER III-V",null,null,null,null,null,null,null,null,null,null,null,null,null,null,null,null,"HP"]
["Name of Employee:",null,null,{"$f":"IF(database[name]=\"\",\"\",database[name])","v":""},null,null,null,null,"Name of Rater:",null,{"$f":"IF(database[rater]=\"\",\"\",database[rater])","v":""}]
["Position:",null,null,{"$f":"IF(database[position]=\"\",\"\",database[position])","v":""},null,null,null,null,"Position:",null,{"$f":"IF(database[rater_position]=\"\",\"\",database[rater_position])","v":""}]
["Bureau/Center/Service/Division:",null,null,{"$f":"(database[school_name] & \" - \" & database[division])","v":" - "},null,null,null,null,"Date of Review:",null,{"$f":"IF(database[date_of_review]=\"\",\"\",database[date_of_review])","v":""}]
["Rating Period:",null,null,{"$f":"IF(database[rating_period]=\"\",\"\",database[rating_period])","v":""}]
[]
[]
["TO BE FILLED OUT DURING PLANNING ",null,null,null,null,null,null,null,null,null,null,"TO BE FILLED OUT DURING EVALUATION"]
["MFOs","KRAs","Objectives","Timeline","Weight per KRA","Performance Indicators",null,null,null,null,null,"Actual Results","Rating",null,null,null,"Score"]
[null,null,null,null,null,"QET","Outstanding","Very Satisfactory","Satisfactory","Unsatisfactory","Poor"]
[null,null,null,null,null,null,5,4,3,2,1,null,"Q","E","T","Ave"]
["Basic Education Services","1. Content Knowledge and Pedagogy","1. Modeled effective applications of content knowledge within and across curriculum teaching areas.",{"$f":"$D$5","v":""},0.22500000000000001,"Quality","Modeled effective applications of content knowledge within and across curriculum teaching areas as shown in the Main MOV with a rating of 8","Modeled effective applications of content knowledge within and across curriculum teaching areas as shown in the Main MOV with a rating of 7","Modeled effective applications of content knowledge within and across curriculum teaching areas as shown in the Main MOV with a rating of 6","Modeled effective applications of content knowledge within and across curriculum teaching areas as shown in the Main MOV with a rating of 5","No acceptable evidence was shown",{"$f":"IFERROR(HLOOKUP($M12,$G$11:$K12,2,FALSE),\"\")","v":""},{"$f":"IF(database[proficiency]=R1,database[Objective1Q],\"\")","v":""},{"$f":"IF(database[proficiency]=R1,database[Objective1E],\"\")","v":""},null,{"$f":"IF(database[proficiency]=R1,database[Objective1AVE],\"\")","v":""},{"$f":"IF(database[proficiency]=R1,database[Objective1Score],\"\")","v":""}]
[null,null,null,null,null,"Efficiency","Submitted 4 Main MOV, each with any 1 of the Supporting MOV","Submitted 3 Main MOV, each with any 1 of the Supporting MOV","Submitted 2 Main MOV, each with any 1 of the Supporting MOV","Submitted 1 Main MOV with any 1 of the Supporting MOV","No acceptable evidence was shown",{"$f":"IFERROR(HLOOKUP($N12,$G$11:$K13,3,FALSE),\"\")","v":""}]
[null,null,null,null,null,"Timeliness"]
[null,null,"2. Collaborated with colleagues in the conduct and application of research to enrich knowledge of content and pedagogy.",{"$f":"$D$5","v":""},null,"Quality","Conducted, completed and disseminated action research with colleagues","Conducted and\ncompleted action research with colleagues\n","Conducted action research with colleagues ","Proposed action research with colleagues","No acceptable evidence was shown",{"$f":"IFERROR(HLOOKUP($M15,$G$11:$K15,5,FALSE),\"\")","v":""},{"$f":"IF(database[proficiency]=R1,database[Objective2Q],\"\")","v":""},{"$f":"IF(database[proficiency]=R1,database[Objective2E],\"\")","v":""},{"$f":"IF(database[proficiency]=R1,database[Objective2T],\"\")","v":""},{"$f":"IF(database[proficiency]=R1,database[Objective2AVE],\"\")","v":""},{"$f":"IF(database[proficiency]=R1,database[Objective2Score],\"\")","v":""}]
[null,null,null,null,null,"Efficiency","Submitted any 4 of the acceptable MOV  ","Submitted any 3 of the acceptable MOV  ","Submitted any 2 of the acceptable MOV  ","Submitted any 1 of the acceptable MOV  ","No acceptable evidence was shown",{"$f":"IFERROR(HLOOKUP($N15,$G$11:$K16,6,FALSE),\"\")","v":""}]
[null,null,null,null,null,"Timeliness","Presented the research report within the rating period ","Completed the research report within the rating period","Conducted the research report within the rating period","Proposed the research report within the rating period","No acceptable evidence was shown",{"$f":"IFERROR(HLOOKUP($O15,$G$11:$K17,7,FALSE),\"\")","v":""}]
[null,null,"3. Developed and applied effective teaching strategies to promote critical and creative thinking, as well as other higher-order thinking skills.",{"$f":"$D$5","v":""},null,"Quality","Demonstrated effective teaching strategies to promote critical and/or creative thinking, as well as other higher-order thinking skills as shown in the Main MOV with a rating of 8","Demonstrated effective teaching strategies to promote critical and/or creative thinking, as well as other higher-order thinking skills as shown in the Main MOV with a rating of 7","Demonstrated effective teaching strategies to promote critical and/or creative thinking, as well as other higher-order thinking skills as shown in the Main MOV with a rating of 6","Demonstrated effective teaching strategies to promote critical and/or creative thinking, as well as other higher-order thinking skills as shown in the Main MOV with a rating of 5","No acceptable evidence was shown",{"$f":"IFERROR(HLOOKUP($M18,$G$11:$K18,8,FALSE),\"\")","v":""},{"$f":"IF(database[proficiency]=R1,database[Objective3Q],\"\")","v":""},{"$f":"IF(database[proficiency]=R1,database[Objective3E],\"\")","v":""},null,{"$f":"IF(database[proficiency]=R1,database[Objective3AVE],\"\")","v":""},{"$f":"IF(database[proficiency]=R1,database[Objective3Score],\"\")","v":""}]
[null,null,null,null,null,"Efficiency","Submitted 4 Main MOV, each with any 1 of the Supporting MOV","Submitted 3 Main MOV, each with any 1 of the Supporting MOV","Submitted 2 Main MOV, each with any 1 of the Supporting MOV","Submitted 1 Main MOV with any 1 of the Supporting MOV","No acceptable evidence was shown",{"$f":"IFERROR(HLOOKUP($N18,$G$11:$K19,9,FALSE),\"\")","v":""}]
[null,null,null,null,null,"Timeliness"]
[null,"2. Learning Environment and Diversity of Learners","4. Worked with colleagues to model and share effective techniques in the management of classroom structure to engage learners, individually or in groups, in meaningful exploration, discovery and hands-on activities within a range of physical learning environments.",{"$f":"$D$5","v":""},0.22500000000000001,"Quality","Modeled and shared effective classroom management strategies that engage learners in activities/ tasks done in different physical learning environments as shown in the Main MOV with a rating of 8","Modeled and shared effective classroom management strategies that engage learners in activities/ tasks done in different physical learning environments as shown in the Main MOV with a rating of 7","Modeled and shared effective classroom management strategies that engage learners in activities/ tasks done in different physical learning environments as shown in the Main MOV with a rating of 6","Modeled and shared effective classroom management strategies that engage learners in activities/ tasks done in different physical learning environments as shown in the Main MOV with a rating of 5","No acceptable evidence was shown",{"$f":"IFERROR(HLOOKUP($M21,$G$11:$K21,11,FALSE),\"\")","v":""},{"$f":"IF(database[proficiency]=R1,database[Objective4Q],\"\")","v":""},{"$f":"IF(database[proficiency]=R1,database[Objective4E],\"\")","v":""},null,{"$f":"IF(database[proficiency]=R1,database[Objective4AVE],\"\")","v":""},{"$f":"IF(database[proficiency]=R1,database[Objective4Score],\"\")","v":""}]
[null,null,null,null,null,"Efficiency","Submitted 4 Main MOV, each with any 1 of the Supporting MOV","Submitted 3 Main MOV, each with any 1 of the Supporting MOV","Submitted 2 Main MOV, each with any 1 of the Supporting MOV","Submitted 1 Main MOV with any 1 of the Supporting MOV","No acceptable evidence was shown",{"$f":"IFERROR(HLOOKUP($N21,$G$11:$K22,12,FALSE),\"\")","v":""}]
[null,null,null,null,null,"Timeliness"]
[null,null,"5. Exhibited effective and constructive behavior management skills by applying positive and non-violent discipline to ensure learning-focused environments.",{"$f":"$D$5","v":""},null,"Quality","Exhibited effective and constructive behavior management skills by applying positive and non-violent discipline to ensure learning-focused environments shown in the MOV with a rating of 8","Exhibited effective and constructive behavior management skills by applying positive and non-violent discipline to ensure learning-focused environments shown in the MOV with a rating of 7","Exhibited effective and constructive behavior management skills by applying positive and non-violent discipline to ensure learning-focused environments shown in the MOV with a rating of 6","Exhibited effective and constructive behavior management skills by applying positive and non-violent discipline to ensure learning-focused environments shown in the MOV with a rating of 5","No acceptable evidence shown",{"$f":"IFERROR(HLOOKUP($M24,$G$11:$K24,14,FALSE),\"\")","v":""},{"$f":"IF(database[proficiency]=R1,database[Objective5Q],\"\")","v":""},{"$f":"IF(database[proficiency]=R1,database[Objective5E],\"\")","v":""},null,{"$f":"IF(database[proficiency]=R1,database[Objective5AVE],\"\")","v":""},{"$f":"IF(database[proficiency]=R1,database[Objective5Score],\"\")","v":""}]
[null,null,null,null,null,"Efficiency","Submitted 4 COT rating sheets/inter-observer agreement forms, each with 7 strategies as noted in the comment section  ","Submitted 3 COT rating sheets/inter-observer agreement forms, each with 7 strategies as noted in the comment section  ","Submitted 2 COT rating sheets/inter-observer agreement forms, each with 7 strategies as noted in the comment section  ","Submitted 1 COT rating sheet/inter-observer agreement form with any 1 of the given strategies as noted in the comment section  ","No acceptable evidence was shown",{"$f":"IFERROR(HLOOKUP($N24,$G$11:$K25,15,FALSE),\"\")","v":""}]
[null,null,null,null,null,"Timeliness"]
[null,null,"6. Worked with colleagues to share differentiated, developmentally appropriate opportunities to address learners’ differences in gender, needs, strengths, interests and experiences.",{"$f":"$D$5","v":""},null,"Quality","Worked with colleagues at least in the district/cluster level to share differentiated, developmentally appropriate opportunities to address learners’ differences","Worked with colleagues in the school level to share differentiated, developmentally appropriate opportunities to address learners’ differences","Worked with colleagues in the department or grade level to share differentiated, developmentally appropriate opportunities to address learners’ differences","Worked with colleagues but no evidence of sharing differentiated, developmentally appropriate opportunities to address learners’ differences with others","No acceptable evidence shown",{"$f":"IFERROR(HLOOKUP($M27,$G$11:$K27,17,FALSE),\"\")","v":""},{"$f":"IF(database[proficiency]=R1,database[Objective6Q],\"\")","v":""},{"$f":"IF(database[proficiency]=R1,database[Objective6E],\"\")","v":""},null,{"$f":"IF(database[proficiency]=R1,database[Objective6AVE],\"\")","v":""},{"$f":"IF(database[proficiency]=R1,database[Objective6Score],\"\")","v":""}]
[null,null,null,null,null,"Efficiency","Submitted 4 Main MOV, each with any 1 of the Supporting MOV","Submitted 3 Main MOV, each with any 1 of the Supporting MOV","Submitted 2 Main MOV, each with any 1 of the Supporting MOV","Submitted 1 Main MOV with any 1 of the Supporting MOV","No acceptable evidence was shown",{"$f":"IFERROR(HLOOKUP($N27,$G$11:$K28,18,FALSE),\"\")","v":""}]
[null,null,null,null,null,"Timeliness"]
[null,"3. Curriculum and Planning","7. Developed and applied effective strategies in the planning and management of developmentally sequenced teaching and learning processes to meet curriculum requirements and varied teaching contexts.",{"$f":"$D$5","v":""},0.22500000000000001,"Quality","Developed and applied effective strategies showing developmentally- sequenced teaching and learning process as shown in the Main MOV with a rating of 8","Developed and applied effective strategies showing developmentally- sequenced teaching and learning process as shown in the Main MOV with a rating of 7","Developed and applied effective strategies showing developmentally- sequenced teaching and learning process as shown in the Main MOV with a rating of 6","Developed and applied effective strategies showing developmentally- sequenced teaching and learning process as shown in the Main MOV with a rating of 5","No acceptable evidence was shown",{"$f":"IFERROR(HLOOKUP($M30,$G$11:$K30,20,FALSE),\"\")","v":""},{"$f":"IF(database[proficiency]=R1,database[Objective7Q],\"\")","v":""},{"$f":"IF(database[proficiency]=R1,database[Objective7E],\"\")","v":""},null,{"$f":"IF(database[proficiency]=R1,database[Objective7AVE],\"\")","v":""},{"$f":"IF(database[proficiency]=R1,database[Objective7Score],\"\")","v":""}]
[null,null,null,null,null,"Efficiency","Submitted 4 Main MOV, each with any 1 of the Supporting MOV","Submitted 3 Main MOV, each with any 1 of the Supporting MOV","Submitted 2 Main MOV, each with any 1 of the Supporting MOV","Submitted 1 Main MOV with any 1 of the Supporting MOV","No acceptable evidence was shown",{"$f":"IFERROR(HLOOKUP($N30,$G$11:$K31,21,FALSE),\"\")","v":""}]
[null,null,null,null,null,"Timeliness"]
[null,null,"8. Reviewed with colleagues, teacher and learner feedback to plan, facilitate and enrich teaching practice.",{"$f":"$D$5","v":""},null,"Quality","Consistently led collaborative reviews of teacher and learner feedback as evidenced by the MOV submitted ","Frequently led collaborative reviews of teacher and learner feedback as evidenced by the MOV submitted ","Occasionally led collaborative reviews of teacher and learner feedback as evidenced by the MOV submitted ","Rarely led collaborative reviews of teacher and learner feedback as evidenced by the MOV submitted ","No acceptable evidence was shown",{"$f":"IFERROR(HLOOKUP($M33,$G$11:$K33,23,FALSE),\"\")","v":""},{"$f":"IF(database[proficiency]=R1,database[Objective8Q],\"\")","v":""},{"$f":"IF(database[proficiency]=R1,database[Objective8E],\"\")","v":""},null,{"$f":"IF(database[proficiency]=R1,database[Objective8AVE],\"\")","v":""},{"$f":"IF(database[proficiency]=R1,database[Objective8Score],\"\")","v":""}]
[null,null,null,null,null,"Efficiency","Submitted 4 Main MOV, each with any 1 of the Supporting MOV","Submitted 3 Main MOV, each with any 1 of the Supporting MOV","Submitted 2 Main MOV, each with any 1 of the Supporting MOV","Submitted 1 Main MOV with any 1 of the Supporting MOV","No acceptable evidence was shown",{"$f":"IFERROR(HLOOKUP($N33,$G$11:$K34,24,FALSE),\"\")","v":""}]
[null,null,null,null,null,"Timeliness"]
[null,null,"9. Advised and guided colleagues in the selection, organization, development and use of appropriate teaching and learning resources, including ICT, to address specific learning goals.  ",{"$f":"$D$5","v":""},null,"Quality","Consistently advised colleagues in the selection, organization, development and appropriate use of teaching and learning resources as shown in the MOV submitted","Frequently advised colleagues in the selection, organization, development and appropriate use of teaching and learning resources as shown in the MOV submitted","Occasionally  advised colleagues in the selection, organization, development and appropriate use of teaching and learning resources as shown in the MOV submitted","Rarely advised colleagues in the selection, organization, development and appropriate use of teaching and learning resources as shown in the MOV submitted","No acceptable evidence was shown",{"$f":"IFERROR(HLOOKUP($M36,$G$11:$K36,26,FALSE),\"\")","v":""},{"$f":"IF(database[proficiency]=R1,database[Objective9Q],\"\")","v":""},{"$f":"IF(database[proficiency]=R1,database[Objective9E],\"\")","v":""},null,{"$f":"IF(database[proficiency]=R1,database[Objective9AVE],\"\")","v":""},{"$f":"IF(database[proficiency]=R1,database[Objective9Score],\"\")","v":""}]
[null,null,null,null,null,"Efficiency","Submitted 4 of the acceptable MOV","Submitted 3 of the acceptable MOV","Submitted 2 of the acceptable MOV","Submitted 1 of the acceptable MOV","No acceptable evidence was shown",{"$f":"IFERROR(HLOOKUP($N36,$G$11:$K37,27,FALSE),\"\")","v":""}]
[null,null,null,null,null,"Timeliness"]
[null,"4. Assessment and Reporting","10. Worked collaboratively with colleagues to review the design, selection, organization and use of a range of effective diagnostic, formative and summative assessment strategies consistent with curriculum requirements.",{"$f":"$D$5","v":""},0.22500000000000001,"Quality","Consistently reviewed collaboratively assessment tools with colleagues as shown in the MOV submitted","Frequently reviewed collaboratively assessment tools with colleagues as shown in the MOV submitted","Occasionally reviewed collaboratively assessment tools with colleagues as shown in the MOV submitted","Rarely reviewed collaboratively assessment tools with colleagues as shown in the MOV submitted","No acceptable evidence was shown",{"$f":"IFERROR(HLOOKUP($M39,$G$11:$K39,29,FALSE),\"\")","v":""},{"$f":"IF(database[proficiency]=R1,database[Objective10Q],\"\")","v":""},{"$f":"IF(database[proficiency]=R1,database[Objective10E],\"\")","v":""},null,{"$f":"IF(database[proficiency]=R1,database[Objective10AVE],\"\")","v":""},{"$f":"IF(database[proficiency]=R1,database[Objective10Score],\"\")","v":""}]
[null,null,null,null,null,"Efficiency","Submitted 4 assessment tools as evidently shown in any of the acceptable MOV","Submitted 3 assessment tools as evidently shown in any of the acceptable MOV","Submitted 2 assessment tools as evidently shown in any of the acceptable MOV","Submitted 1 assessment tool as evidently shown in any of the acceptable MOV","No acceptable evidence was shown",{"$f":"IFERROR(HLOOKUP($N39,$G$11:$K40,30,FALSE),\"\")","v":""}]
[null,null,null,null,null,"Timeliness"]
[null,null,"11. Interpreted collaboratively monitoring and evaluation strategies of attainment data to support learner progress and achievement.",{"$f":"$D$5","v":""},null,"Quality","Consistently collaborated with colleagues in the interpretation of assessment data as shown in the MOV submitted","Frequently collaborated with colleagues in the interpretation of assessment data as shown in the MOV submitted","Occasionally collaborated with colleagues in the interpretation of assessment data as shown in the MOV submitted","Rarely collaborated with colleagues in the interpretation of assessment data as shown in the MOV submitted","No acceptable evidence was shown ",{"$f":"IFERROR(HLOOKUP($M42,$G$11:$K42,32,FALSE),\"\")","v":""},{"$f":"IF(database[proficiency]=R1,database[Objective11Q],\"\")","v":""},{"$f":"IF(database[proficiency]=R1,database[Objective11E],\"\")","v":""},null,{"$f":"IF(database[proficiency]=R1,database[Objective11AVE],\"\")","v":""},{"$f":"IF(database[proficiency]=R1,database[Objective11Score],\"\")","v":""}]
[null,null,null,null,null,"Efficiency","Submitted 2 different types of MOV","Submitted 3 of the same kind of MOV","Submitted 2 of the same kind of MOV","Submitted any 1 of the MOV","No acceptable evidence was shown",{"$f":"IFERROR(HLOOKUP($N42,$G$11:$K43,33,FALSE),\"\")","v":""}]
[null,null,null,null,null,"Timeliness"]
[null,null,"12. Applied skills in the effective communication of learner needs, progress and achievement to key stakeholders, including parents/guardians.",{"$f":"$D$5","v":""},null,"Quality","Consistently applied skills in the effective communication of learner needs and progress to parents/ guardians as shown in the MOV submitted","Frequently applied skills in the effective communication of learner needs and progress to parents/ guardians as shown in the MOV submitted","Occasionally applied skills in the effective communication of learner needs and progress to parents/ guardians as shown in the MOV submitted ","Rarely applied skills in the effective communication of learner needs and progress to parents/ guardians as shown in the MOV submitted","No acceptable evidence was shown",{"$f":"IFERROR(HLOOKUP($M45,$G$11:$K45,35,FALSE),\"\")","v":""},{"$f":"IF(database[proficiency]=R1,database[Objective12Q],\"\")","v":""},{"$f":"IF(database[proficiency]=R1,database[Objective12E],\"\")","v":""},null,{"$f":"IF(database[proficiency]=R1,database[Objective12AVE],\"\")","v":""},{"$f":"IF(database[proficiency]=R1,database[Objective12Score],\"\")","v":""}]
[null,null,null,null,null,"Efficiency","Submitted 4 of the acceptable MOV","Submitted 3 of the acceptable MOV","Submitted 2 of the acceptable MOV","Submitted 1 of the acceptable MOV","No acceptable evidence was shown",{"$f":"IFERROR(HLOOKUP($N45,$G$11:$K46,36,FALSE),\"\")","v":""}]
[null,null,null,null,null,"Timeliness"]
[null,"5. Plus Factor","13. Performed various related works/activities that contribute to the teaching-learning process.",{"$f":"$D$5","v":""},0.1,"Quality","Consistently performed special tasks and/or assignments as shown in the MOV submitted","Frequently performed special tasks and/or assignments as shown in the MOV submitted","Occasionally performed special tasks and/or assignments as shown in the MOV submitted","Rarely performed special tasks and/or assignments as shown in the MOV submitted","No acceptable evidence was shown",{"$f":"IFERROR(HLOOKUP($M48,$G$11:$K48,38,FALSE),\"\")","v":""},{"$f":"IF(database[proficiency]=R1,database[Objective13Q],\"\")","v":""},{"$f":"IF(database[proficiency]=R1,database[Objective13E],\"\")","v":""},null,{"$f":"IF(database[proficiency]=R1,database[Objective13AVE],\"\")","v":""},{"$f":"IF(database[proficiency]=R1,database[Objective13Score],\"\")","v":""}]
[null,null,null,null,null,"Efficiency","Submitted 4 of the acceptable MOV","Submitted 3 of the acceptable MOV","Submitted 2 of the acceptable MOV","Submitted 1 of the acceptable MOV","No acceptable evidence was shown",{"$f":"IFERROR(HLOOKUP($N48,$G$11:$K49,39,FALSE),\"\")","v":""}]
[null,null,null,null,null,"Timeliness"]
[null,null,null,null,null,null,null,null,null,"RATING FOR OVERALL ACCOMPLISHMENTS",null,null,{"$f":"IF(database[proficiency]=R1,database[Adjectival_rating],\"\")","v":""},{"$f":"IF(M51<1.499,\"Poor\",IF(M51<=2.499,\"Unsatisfactory\",IF(M51<=3.499,\"Satisfactory\",IF(M51<=4.499,\"Very Satisfactory\",IF(M51<=5,\"Outstanding\")))))","v":false},{"$f":"IF(N51<1.499,\"Poor\",IF(N51<=2.499,\"Unsatisfactory\",IF(N51<=3.499,\"Satisfactory\",IF(N51<=4.499,\"Very Satisfactory\",IF(N51<=5,\"Outstanding\")))))","v":false},{"$f":"IF(O51<1.499,\"Poor\",IF(O51<=2.499,\"Unsatisfactory\",IF(O51<=3.499,\"Satisfactory\",IF(O51<=4.499,\"Very Satisfactory\",IF(O51<=5,\"Outstanding\")))))","v":false},{"$f":"IF(database[proficiency]=R1,database[RATING],\"\")","v":""}]
[]
[]
["ADJECTIVAL RATING EQUIVALENCES"]
["RANGE ",null,"ADJECTIVAL RATING"]
["4.500 – 5.000 ",null,"Outstanding"]
["3.500 – 4.499 ",null,"Very Satisfactory"]
["2.500 – 3.499 ",null,"Satisfactory"]
["1.500 – 2.499 ",null,"Unsatisfactory"]
["below 1.499",null,"Poor"]
[]
[]
[]
[]
[null,{"$f":"IF(database[name]=\"\",\"\",database[name])","v":""},null,null,null,null,null,{"$f":"IF(database[rater]=\"\",\"\",database[rater])","v":""},null,null,null,{"$f":"IF(database[approving_authority]=\"\",\"\",database[approving_authority])","v":""}]
[null,"Ratee",null,null,null,null,null,"Rater",null,null,null,"Approving Authority"]

{"sheet":"PART 2","index":5,"n_rows":22,"n_cols":4,"rows_kept":22,"cut":false,"hidden":false,"merged":[[15,1,20,1],[15,3,20,3],[21,0,21,3],[0,0,0,3],[1,0,1,3],[2,0,2,3],[3,1,8,1],[3,3,8,3],[9,1,14,1],[9,3,14,3]]}
["PART II: COMPETENCIES"]
["Instructions: Please indicate the number of competency indicators that you demonstrated during the performance cycle. "]
["CORE BEHAVIORAL COMPETENCIES"]
["Self-Management",{"$f":"database[self_management]","v":0},"Teamwork",{"$f":"database[teamwork]","v":0}]
["1. Sets personal goals and directions, needs and development.",null,"1. Willingly does his/her share of responsibility."]
["2. Undertakes personal actions and behavior that are clear and purposive and takes into account personal goals and values congruent to that of the organization.",null,"2. Promotes collaboration and removes barrier to teamwork and goal accomplishment across the organization."]
["3. Displays emotional maturity and enthusiasm for and is challenged by higher goals.",null,"3. Applies negotiation principles in arriving at win-win agreements."]
["4. Prioritizes work tasks and schedules (through Gantt chants, checklists, etc.) to achieve goals.",null,"4. Drives consensus and team ownership of decisions."]
["5. Sets high quality, challenging, realistic goals for self and others.",null,"5. Works constructively and collaboratively with others and across organizations to accomplish organization goals and objectives."]
["Professionalism and Ethics",{"$f":"database[PE]","v":0},"Service Orientation",{"$f":"database[service_orientation]","v":0}]
["1. Demonstrates the values and behavior enshrined in the Norms and Conduct and Ethical Standards for Public Officials and Employees (RA 6713).",null,"1. Can explain and articulate organizational directions, issues and problems."]
["2. Practices ethical and professional behavior and conduct taking into account the impact of his/her actions and decisions.",null,"2. Takes personal responsibility for dealing with and/or correcting customer service issues and concerns."]
["3. Maintains a professional image: being trustworthy, regularity of attendance and punctuality, good grooming and communication.",null,"3. Initiates activities that promote advocacy for men and women empowerment."]
["4. Makes personal sacrifices to meet the organization’s needs.",null,"4. Participates in updating office vision, mission, mandates and strategies based on DepEd strategies and directions."]
["5. Acts with a sense of urgency and responsibility to meet the organization’s needs, improve system and help others improve their effectiveness.",null,"5. Develops and adopts service improvement program through simplified procedures that will further enhance service delivery."]
["Results Focus",{"$f":"database[results_focus]","v":0},"Innovation",{"$f":"database[innovation]","v":0}]
["1. Achieves results with optimal use of time and resources most of the time.",null,"1. Examines the root cause of problems and suggests effective solutions. Foster new ideas, processes and suggests better ways to do things (cost and/or operational efficiency)."]
["2. Avoids rework, mistakes and wastage through effective work methods by placing organizational needs before personal needs.",null,"2. Demonstrates an ability to think “beyond the box”. Continuously focuses on improving personal productivity to create higher value and results."]
["3. Delivers error-free outputs most of the time by conforming to standard operating procedures correctly and consistently. Able to produce very satisfactory quality work in terms of usefulness/acceptability and completeness with no supervision required.",null,"3. Promotes a creative climate and inspires co-workers to develop original ideas or solutions."]
["4. Expresses a desire to do better and may express frustration at waste or inefficiency. May focus on new or more precise ways of meeting goals set.",null,"4. Translates creative thinking into tangible changes and solutions that improve the work unit and organization."]
["5. Makes specific changes in the system or in own work methods to improve performance. Examples may include doing something better, faster, at a lower cost, more efficiently, or improving quality, customer satisfaction, morale, without setting any specific goal.",null,"5. Uses ingenious methods to accomplish responsibilities. Demonstrates resourcefulness and the ability to succeed with minimal resources."]
["Note: The assessment in the demonstration of competencies shall not be reflected in the final rating. These competencies are monitored to inform professional development plans (DepEd Order No. 2, s. 2015, p. 9)."]

{"sheet":"PART 3","index":6,"n_rows":31,"n_cols":11,"rows_kept":31,"cut":false,"hidden":false,"merged":[[24,3,25,6],[17,1,19,1],[17,2,19,2],[29,8,29,11],[29,0,29,2],[0,0,0,11],[1,0,1,11],[9,10,10,10],[24,9,24,10],[25,9,25,10],[3,8,3,10],[4,8,4,10],[5,8,5,10],[6,6,6,10],[8,1,8,10],[20,1,22,1],[20,2,22,2],[9,9,10,9],[3,1,3,2],[3,3,3,5],[24,1,25,2],[3,6,3,7],[4,1,4,2],[4,3,4,5],[9,1,10,1],[9,2,10,2],[9,3,10,3],[9,4,10,4],[9,5,9,8],[30,0,30,2],[29,3,29,7],[30,3,30,7],[4,6,4,7],[5,6,5,7],[5,1,5,2],[5,3,5,5],[6,1,6,2],[6,3,6,5],[24,7,24,8],[25,7,25,8],[11,1,13,1],[11,2,13,2],[14,1,16,1],[14,2,16,2],[30,8,30,11]]}
["INDIVIDUAL PERFORMANCE COMMITMENT AND REVIEW FORM (IPCRF) SUMMARY SHEET"]
[{"$f":"IF(OR(Database!I2=\"P\",Database!I2=\"\"),\"Teacher I-III, SPET I-IV, Special Science Teacher I-II (Proficient Teacher)\", \"Master Teacher I-IV, SPET V, Special Science Teacher III-V (Highly Proficient Teacher)\")","v":"Teacher I-III, SPET I-IV, Special Science Teacher I-II (Proficient Teacher)"}]
[]
[null,"Name of Employee:",null,{"$f":"IF(database[name]=\"\",\"\",database[name])","v":""},null,null,"Name of Rater:",null,{"$f":"IF(database[rater]=\"\",\"\",database[rater])","v":""}]
[null,"Position:",null,{"$f":"IF(database[position]=\"\",\"\",database[position])","v":""},null,null,"Position:",null,{"$f":"IF(database[rater_position]=\"\",\"\",database[rater_position])","v":""}]
[null,"Bureau/Center/Service/Division:",null,{"$f":"(database[school_name] & \" - \" & database[division])","v":" - "},null,null,"Date of Review:",null,{"$f":"IF(database[date_of_review]=\"\",\"\",database[date_of_review])","v":""}]
[null,"Rating Period:",null,{"$f":"IF(database[rating_period]=\"\",\"\",database[rating_period])","v":""}]
[]
[null,"PART III. SUMMARY OF RATINGS FOR DISCUSSION"]
[null,"KRA","Weight per KRA","Objectives","Weight per Objective","Numerical Ratings",null,null,null,"Score","Adjectival\nRating"]
[null,null,null,null,null,"Q","E","T","Ave"]
[null,"KRA 1",0.22500000000000001,"Objective 1",7.4999999999999997E-2,{"$f":"database[Objective1Q]","v":0},{"$f":"database[Objective1E]","v":0},null,{"$f":"database[Objective1AVE]","v":0},{"$f":"database[Objective1Score]","v":0},{"$f":"IF(ROUNDDOWN(I12,3)<1.499,\"Poor\",IF(ROUNDDOWN(I12,3)<=2.499,\"Unsatisfactory\",IF(ROUNDDOWN(I12,3)<=3.499,\"Satisfactory\",IF(ROUNDDOWN(I12,3)<=4.499,\"Very Satisfactory\",IF(ROUNDDOWN(I12,3)<=5,\"Outstanding\")))))","v":"Poor"}]
[null,null,null,"Objective 2",7.4999999999999997E-2,{"$f":"database[Objective2Q]","v":0},{"$f":"database[Objective2E]","v":0},{"$f":"database[Objective2T]","v":0},{"$f":"database[Objective2AVE]","v":0},{"$f":"database[Objective2Score]","v":0},{"$f":"IF(ROUNDDOWN(I13,3)<1.499,\"Poor\",IF(ROUNDDOWN(I13,3)<=2.499,\"Unsatisfactory\",IF(ROUNDDOWN(I13,3)<=3.499,\"Satisfactory\",IF(ROUNDDOWN(I13,3)<=4.499,\"Very Satisfactory\",IF(ROUNDDOWN(I13,3)<=5,\"Outstanding\")))))","v":"Poor"}]
[null,null,null,"Objective 3",7.4999999999999997E-2,{"$f":"database[Objective3Q]","v":0},{"$f":"database[Objective3E]","v":0},null,{"$f":"database[Objective3AVE]","v":0},{"$f":"database[Objective3Score]","v":0},"Poor"]
[null,"KRA 2",0.22500000000000001,"Objective 4",7.4999999999999997E-2,{"$f":"database[Objective4Q]","v":0},{"$f":"database[Objective4E]","v":0},null,{"$f":"database[Objective4AVE]","v":0},{"$f":"database[Objective4Score]","v":0},"Poor"]
[null,null,null,"Objective 5",7.4999999999999997E-2,{"$f":"database[Objective5Q]","v":0},{"$f":"database[Objective5E]","v":0},null,{"$f":"database[Objective5AVE]","v":0},{"$f":"database[Objective5Score]","v":0},"Poor"]
[null,null,null,"Objective 6",7.4999999999999997E-2,{"$f":"database[Objective6Q]","v":0},{"$f":"database[Objective6E]","v":0},null,{"$f":"database[Objective6AVE]","v":0},{"$f":"database[Objective6Score]","v":0},"Poor"]
[null,"KRA 3",0.22500000000000001,"Objective 7",7.4999999999999997E-2,{"$f":"database[Objective7Q]","v":0},{"$f":"database[Objective7E]","v":0},null,{"$f":"database[Objective7AVE]","v":0},{"$f":"database[Objective7Score]","v":0},"Poor"]
[null,null,null,"Objective 8",7.4999999999999997E-2,{"$f":"database[Objective8Q]","v":0},{"$f":"database[Objective8E]","v":0},null,{"$f":"database[Objective8AVE]","v":0},{"$f":"database[Objective8Score]","v":0},"Poor"]
[null,null,null,"Objective 9",7.4999999999999997E-2,{"$f":"database[Objective9Q]","v":0},{"$f":"database[Objective9E]","v":0},null,{"$f":"database[Objective9AVE]","v":0},{"$f":"database[Objective9Score]","v":0},"Poor"]
[null,"KRA 4",0.22500000000000001,"Objective 10",7.4999999999999997E-2,{"$f":"database[Objective10Q]","v":0},{"$f":"database[Objective10E]","v":0},null,{"$f":"database[Objective10AVE]","v":0},{"$f":"database[Objective10Score]","v":0},"Poor"]
[null,null,null,"Objective 11",7.4999999999999997E-2,{"$f":"database[Objective11Q]","v":0},{"$f":"database[Objective11E]","v":0},{"$f":"database[Objective11T]","v":0},{"$f":"database[Objective11AVE]","v":0},{"$f":"database[Objective11Score]","v":0},"Poor"]
[null,null,null,"Objective 12",7.4999999999999997E-2,{"$f":"database[Objective12Q]","v":0},{"$f":"database[Objective12E]","v":0},{"$f":"database[Objective12T]","v":0},{"$f":"database[Objective12AVE]","v":0},{"$f":"database[Objective12Score]","v":0},"Poor"]
[null,"Plus Factor",0.1,"Objective 13",0.1,{"$f":"database[Objective13Q]","v":0},{"$f":"database[Objective13E]","v":0},null,{"$f":"database[Objective13AVE]","v":0},{"$f":"database[Objective13Score]","v":0},"Poor"]
[null,"FINAL PERFORMANCE RESULTS",null,"Accomplishments of KRAs and Objectives",null,null,null,"Final Rating",null,{"$f":"database[RATING]","v":0}]
[null,null,null,null,null,null,null,"Adjectival Rating",null,{"$f":"database[Adjectival_rating]","v":"Poor"}]
[]
[]
[]
[{"$f":"D4","v":""},null,null,{"$f":"I4","v":""},null,null,null,null,{"$f":"IF(database[approving_authority]=\"\",\"\",database[approving_authority])","v":""}]
["Ratee",null,null,"Rater",null,null,null,null,"Approving Authority"]

{"sheet":"PART 4","index":7,"n_rows":33,"n_cols":6,"rows_kept":33,"cut":false,"hidden":false,"merged":[[5,0,5,5],[32,0,32,1],[32,2,32,3],[32,4,32,5],[15,0,15,5],[31,0,31,1],[31,2,31,3],[31,4,31,5],[26,0,30,5],[0,0,0,5],[2,0,4,0],[2,1,4,1],[2,2,2,3],[2,4,4,4],[2,5,4,5],[3,2,3,3]]}
["PART IV: DEVELOPMENT PLANS"]
[]
["Strengths","Development Needs","Action Plan",null,"Timeline","Resources Needed"]
[null,null,"(Recommended Developmental Intervention)"]
[null,null,"Learning Objectives","Intervention"]
["A. Functional Competencies"]
[]
[]
[]
[]
[]
[]
[]
[]
[]
["B. Core Behavioral Competencies "]
[]
[]
[]
[]
[]
[]
[]
[]
[]
["Feedback:"]
[]
[]
[]
[]
[]
[{"$f":"IF(ISBLANK(database[name]),\"\",database[name])","v":""},null,{"$f":"IF(ISBLANK(database[rater]),\"\",database[rater])","v":""},null,{"$f":"IF(ISBLANK(database[approving_authority]),\"\",database[approving_authority])","v":""}]
["RATEE",null,"RATER",null,"APPROVING AUTHORITY"]

{"sheet":"divisions","index":8,"n_rows":224,"n_cols":15,"rows_kept":224,"cut":false,"hidden":true,"merged":[]}
["Region","Division"]
["BARMM","Basilan",null,null,null,"Bangsamoro Autonomous Region in Muslim Mindanao (BARMM)","BARMM_divlist",null,{"$f":"IFERROR(VLOOKUP(Encoding!$R$4,divisions!$F$2:$G$18,2,0),\"\")","v":""},null,"Kindergarten","Kindergarten",null,"Kindergarten","Class1"]
["BARMM","Lamitan City",null,null,null,"Cordillera Administrative Region (CAR)","CAR_divlist",null,null,null,"Kinder to Grade 6","Kindergarten",null,"Kinder to Grade 6","Class2"]
["BARMM","Lanao del Sur I",null,null,null,"National Capital Region (NCR)","NCR_divlist",null,null,null,"Kinder to Grade 6","Elementary",null,"Kinder to Grade 10","Class3"]
["BARMM","Lanao del Sur II",null,null,null,"I - Ilocos Region","RI_divlist",null,null,null,"Kinder to Grade 10","Kindergarten",null,"Kinder to Grade 12","Class4"]
["BARMM","Maguindanao I",null,null,null,"II - Cagayan Valley","RII_divlist",null,null,null,"Kinder to Grade 10","Elementary",null,"Kinder to Grade 6; Grade 11-12","Class5"]
["BARMM","Maguindanao II",null,null,null,"III - Central Luzon","RIII_divlist",null,null,null,"Kinder to Grade 10","Junior High School",null,"Kinder to Grade 10 attached to Tertiary","Class6"]
["BARMM","Marawi City",null,null,null,"IV-A - CALABARZON","RIVA_divlist",null,null,null,"Kinder to Grade 12","Kindergarten",null,"Kinder to Grade 12 attached to Tertiary","Class7"]
["BARMM","Sulu",null,null,null,"IV-B - MIMAROPA","RIVB_divlist",null,null,null,"Kinder to Grade 12","Elementary",null,"Kindergarten; Grade 7-10","Class8"]
["BARMM","Tawi-Tawi",null,null,null,"V - Bicol Region","RV_divlist",null,null,null,"Kinder to Grade 12","Junior High School",null,"Kindergarten; Grade 7-10; Grade 11-12","Class9"]
["CAR","Abra",null,null,null,"VI - Western Visayas","RVI_divlist",null,null,null,"Kinder to Grade 12","Senior High School",null,"Kindergarten; Grade 11-12","Class10"]
["CAR","Apayao",null,null,null,"VII - Central Visayas","RVII_divlist",null,null,null,"Kinder to Grade 6; Grade 11-12","Kindergarten",null,"Grade 1-6","Class11"]
["CAR","Baguio City",null,null,null,"VIII - Eastern Visayas","RVIII_divlist",null,null,null,"Kinder to Grade 6; Grade 11-12","Elementary",null,"Grade 1-6; Grade 7-10","Class12"]
["CAR","Benguet",null,null,null,"IX - Zamboanga Peninsula","RIX_divlist",null,null,null,"Kinder to Grade 6; Grade 11-12","Senior High School",null,"Grade 1-6; Grade 11-12","Class13"]
["CAR","Ifugao",null,null,null,"X - Northern Mindanao","RX_divlist",null,null,null,"Kinder to Grade 10 attached to Tertiary","Kindergarten",null,"Grade 1-6; Grade 7-10; Grade 11-12","Class14"]
["CAR","Kalinga",null,null,null,"XI - Davao Region","RXI_divlist",null,null,null,"Kinder to Grade 10 attached to Tertiary","Elementary",null,"Grade 7-10","Class15"]
["CAR","Mt. Province",null,null,null,"XII - SOCCSKSARGEN","RXII_divlist",null,null,null,"Kinder to Grade 10 attached to Tertiary","Junior High School",null,"Grade 7-10; Grade 11-12","Class16"]
["CAR","Tabuk City",null,null,null,"XIII - CARAGA Region","CARAGA_divlist",null,null,null,"Kinder to Grade 12 attached to Tertiary","Kindergarten",null,"Grade 11-12","Class17"]
["NCR","Caloocan City",null,null,null,null,null,null,null,null,"Kinder to Grade 12 attached to Tertiary","Elementary",null,"Community-based Learning Center","Class18"]
["NCR","Las Piñas City",null,null,null,null,null,null,null,null,"Kinder to Grade 12 attached to Tertiary","Junior High School"]
["NCR","Makati City",null,null,null,null,null,null,null,null,"Kinder to Grade 12 attached to Tertiary","Senior High School"]
["NCR","Malabon City",null,null,null,null,null,null,null,null,"Kindergarten; Grade 7-10","Kindergarten"]
["NCR","Mandaluyong City",null,null,null,null,null,null,null,null,"Kindergarten; Grade 7-10","Junior High School"]
["NCR","Manila",null,null,null,null,null,null,null,null,"Kindergarten; Grade 7-10; Grade 11-12","Kindergarten"]
["NCR","Marikina City",null,null,null,null,null,null,null,null,"Kindergarten; Grade 7-10; Grade 11-12","Junior High School"]
["NCR","Muntinlupa City",null,null,null,null,null,null,null,null,"Kindergarten; Grade 7-10; Grade 11-12","Senior High School"]
["NCR","Navotas City",null,null,null,null,null,null,null,null,"Kindergarten; Grade 11-12","Kindergarten"]
["NCR","Parañaque City",null,null,null,null,null,null,null,null,"Kindergarten; Grade 11-12","Senior High School"]
["NCR","Pasay City",null,null,null,null,null,null,null,null,"Grade 1-6","Elementary"]
["NCR","Pasig City",null,null,null,null,null,null,null,null,"Grade 1-6; Grade 7-10","Elementary"]
["NCR","Quezon City",null,null,null,null,null,null,null,null,"Grade 1-6; Grade 7-10","Junior High School"]
["NCR","San Juan City",null,null,null,null,null,null,null,null,"Grade 1-6; Grade 11-12","Elementary"]
["NCR","Taguig City-Pateros",null,null,null,null,null,null,null,null,"Grade 1-6; Grade 11-12","Senior High School"]
["NCR","Valenzuela City",null,null,null,null,null,null,null,null,"Grade 1-6; Grade 7-10; Grade 11-12","Elementary"]
["Region I","Alaminos City",null,null,null,null,null,null,null,null,"Grade 1-6; Grade 7-10; Grade 11-12","Junior High School"]
["Region I","Batac City",null,null,null,null,null,null,null,null,"Grade 1-6; Grade 7-10; Grade 11-12","Senior High School"]
["Region I","Candon City",null,null,null,null,null,null,null,null,"Grade 7-10","Junior High School"]
["Region I","Dagupan City",null,null,null,null,null,null,null,null,"Grade 7-10; Grade 11-12","Junior High School"]
["Region I","Ilocos Norte",null,null,null,null,null,null,null,null,"Grade 7-10; Grade 11-12","Senior High School"]
["Region I","Ilocos Sur",null,null,null,null,null,null,null,null,"Grade 11-12","Senior High School"]
["Region I","La Union",null,null,null,null,null,null,null,null,"Community-based Learning Center","Kindergarten"]
["Region I","Laoag City",null,null,null,null,null,null,null,null,"Community-based Learning Center","Elementary"]
["Region I","Pangasinan I",null,null,null,null,null,null,null,null,"Community-based Learning Center","Junior High School"]
["Region I","Pangasinan II",null,null,null,null,null,null,null,null,"Community-based Learning Center","Senior High School"]
["Region I","San Carlos City"]
["Region I","San Fernando City"]
["Region I","Urdaneta City"]
["Region I","Vigan City"]
["Region II","Batanes"]
["Region II","Cagayan"]
["Region II","Cauayan City"]
["Region II","Ilagan City"]
["Region II","Isabela Province"]
["Region II","Nueva Vizcaya"]
["Region II","Quirino"]
["Region II","Santiago City"]
["Region II","Tuguegarao City"]
["Region III","Angeles City"]
["Region III","Aurora"]
["Region III","Balanga City"]
["Region III","Bataan"]
["Region III","Bulacan Province"]
["Region III","Cabanatuan City"]
["Region III","Gapan City"]
["Region III","Mabalacat City"]
["Region III","Malolos City"]
["Region III","Meycauayan"]
["Region III","Nueva Ecija"]
["Region III","Olongapo City"]
["Region III","Pampanga"]
["Region III","San Fernando City"]
["Region III","San Jose City"]
["Region III","San Jose del Monte"]
["Region III","Science City of Muñoz"]
["Region III","Tarlac City"]
["Region III","Tarlac Province"]
["Region III","Zambales"]
["Region IV-A","Antipolo City"]
["Region IV-A","Bacoor City"]
["Region IV-A","Batangas City"]
["Region IV-A","Batangas Province"]
["Region IV-A","Biñan City"]
["Region IV-A","Cabuyao City"]
["Region IV-A","Calamba City"]
["Region IV-A","Cavite City"]
["Region IV-A","Cavite Province"]
["Region IV-A","Dasmariñas City"]
["Region IV-A","General Trias City"]
["Region IV-A","Imus City"]
["Region IV-A","Laguna"]
["Region IV-A","Lipa City"]
["Region IV-A","Lucena City"]
["Region IV-A","Quezon Province"]
["Region IV-A","Rizal"]
["Region IV-A","San Pablo City"]
["Region IV-A","Sta. Rosa City"]
["Region IV-A","Tanauan City"]
["Region IV-A","Tayabas City"]
["Region IV-B","Calapan City"]
["Region IV-B","Marinduque"]
["Region IV-B","Occidental Mindoro"]
["Region IV-B","Oriental Mindoro"]
["Region IV-B","Palawan"]
["Region IV-B","Puerto Princesa"]
["Region IV-B","Romblon"]
["Region V","Albay"]
["Region V","Camarines Norte"]
["Region V","Camarines Sur"]
["Region V","Catanduanes"]
["Region V","Iriga City"]
["Region V","Legazpi City"]
["Region V","Ligao City"]
["Region V","Masbate Province"]
["Region V","Masbate City"]
["Region V","Naga City"]
["Region V","Sorsogon City"]
["Region V","Sorsogon Province"]
["Region V","Tabaco City"]
["Region VI","Aklan"]
["Region VI","Antique"]
["Region VI","Bacolod City"]
["Region VI","Bago City"]
["Region VI","Cadiz City"]
["Region VI","Capiz"]
["Region VI","Escalante City"]
["Region VI","Guimaras"]
["Region VI","Himamaylan City"]
["Region VI","Iloilo City"]
["Region VI","Iloilo Province"]
["Region VI","Kabankalan City"]
["Region VI","La Carlota City"]
["Region VI","Negros Occidental"]
["Region VI","Passi City"]
["Region VI","Roxas City"]
["Region VI","Sagay City"]
["Region VI","San Carlos City"]
["Region VI","Silay City"]
["Region VI","Sipalay City"]
["Region VII","Bais City"]
["Region VII","Bayawan City"]
["Region VII","Bogo City"]
["Region VII","Bohol"]
["Region VII","Carcar City"]
["Region VII","Cebu City"]
["Region VII","Cebu Province"]
["Region VII","Danao"]
["Region VII","Dumaguete City"]
["Region VII","Guihulngan City"]
["Region VII","Lapu-Lapu City "]
["Region VII","Mandaue City"]
["Region VII","Naga City"]
["Region VII","Negros Oriental"]
["Region VII","Siquijor"]
["Region VII","Tagbilaran City"]
["Region VII","Talisay City"]
["Region VII","Tanjay City"]
["Region VII","Toledo City"]
["Region VIII","Baybay City"]
["Region VIII","Biliran"]
["Region VIII","Borongan City"]
["Region VIII","Calbayog City"]
["Region VIII","Catbalogan City"]
["Region VIII","Eastern Samar"]
["Region VIII","Leyte"]
["Region VIII","Maasin City"]
["Region VIII","Northern Samar"]
["Region VIII","Ormoc City"]
["Region VIII","Southern Leyte"]
["Region VIII","Tacloban City"]
["Region VIII","Western Samar"]
["Region IX","Dapitan City"]
["Region IX","Dipolog City"]
["Region IX","Isabela City"]
["Region IX","Pagadian City"]
["Region IX","Zamboanga City"]
["Region IX","Zamboanga del Norte"]
["Region IX","Zamboanga del Sur"]
["Region IX","Zamboanga Sibugay"]
["Region X","Bukidnon"]
["Region X","Cagayan de Oro City"]
["Region X","Camiguin"]
["Region X","El Salvador City"]
["Region X","Gingoog City"]
["Region X","Iligan City"]
["Region X","Lanao Del Norte"]
["Region X","Malaybalay City"]
["Region X","Misamis Occidental"]
["Region X","Misamis oriental"]
["Region X","Oroquieta City"]
["Region X","Ozamis City"]
["Region X","Tangub City"]
["Region X","Valencia City"]
["Region XI","Davao de Oro (Compostela Valley)"]
["Region XI","Davao City"]
["Region XI","Davao del Norte"]
["Region XI","Davao del Sur"]
["Region XI","Davao Occidental"]
["Region XI","Davao Oriental"]
["Region XI","Digos city"]
["Region XI","Mati City"]
["Region XI","Panabo City"]
["Region XI","Samal City"]
["Region XI","Tagum City"]
["Region XII","Cotabato City"]
["Region XII","Cotabato Province"]
["Region XII","General Santos City"]
["Region XII","Kidapawan City"]
["Region XII","Koronadal City"]
["Region XII","Sarangani"]
["Region XII","South Cotabato"]
["Region XII","Sultan Kudarat"]
["Region XII","Tacurong City"]
["Caraga","Agusan del Norte"]
["Caraga","Agusan del Sur"]
["Caraga","Bayugan City"]
["Caraga","Bislig City"]
["Caraga","Butuan"]
["Caraga","Cabadbaran City"]
["Caraga","Dinagat Islands"]
["Caraga","Siargao"]
["Caraga","Surigao City"]
["Caraga","Surigao del Norte"]
["Caraga","Surigao del Sur"]
["Caraga","Tandag City"]

{"sheet":"rating","index":9,"n_rows":32,"n_cols":35,"rows_kept":32,"cut":false,"hidden":true,"merged":[]}
["MT",null,null,"classification",null,"raters",null,null,"subjects",null,"grade level",null,"position",null,"Region",null,null,null,null,"age",null,"Employment Status",null,"Total Number of Years in Teaching",null,null,"Highest Degree Obtained",null,null,"Curricular Classification",null,null,"Sex",null,"Specialization"]
[8,5,null,"Elementary",null,"Schools Division Superintendent",null,null,"All Subjects",null,"Kindergarten",null,"Teacher I",null,"National Capital Region (NCR)",null,null,null,null,"Under 25 years old",null,"Regular Permanent",null,"0-3 years",null,null,"Bachelor's Degree",null,null,"Kindergarten",null,null,"Male",null,"English"]
[7,4,null,"Junior High School",null,"Assistant Schools Division Superintendent",null,null,"MTB-MLE",null,"Grade 1",null,"Teacher II",null,"Cordillera Administrative Region (CAR)",null,null,null,null,"25-30",null,"Provisional",null,"4-10 years",null,null,"Master's Degree",null,null,"Kinder to Grade 6",null,null,"Female",null,"Filipino"]
[6,3,null,"Senior High School",null,"CID Chief",null,null,"Madrasah ALIVE",null,"Grade 2",null,"Teacher III",null,"I - Ilocos Region",null,null,null,null,"31-35",null,"Substitute",null,"More than 10 years",null,null,"Doctorate Degree",null,null,"Kinder to Grade 10",null,null,null,null,"Mathematics"]
[5,2,null,null,null,"Education Program Supervisor",null,null,"Filipino",null,"Grade 3",null,"SPET I",null,"II - Cagayan Valley",null,null,null,null,"36-40",null,"Contractual",null,null,null,null,null,null,null,"Kinder to Grade 12",null,null,null,null,"General Science"]
[4,1,null,null,null,"Public Schools District Supervisor",null,null,"English",null,"Grade 4",null,"SPET II",null,"III - Central Luzon",null,null,null,null,"41-45",null,null,null,null,null,null,null,null,null,"Kinder to Grade 6; Grade 11-12",null,null,null,null,"Biology"]
[null,null,null,null,null,"Principal IV",null,null,"Mathematics",null,"Grade 5",null,"SPET III",null,"IV-A - CALABARZON",null,null,null,null,"46-50",null,null,null,null,null,null,null,null,null,"Kinder to Grade 10 attached to Tertiary",null,null,null,null,"Chemistry"]
[null,null,null,"level taught",null,"Principal III",null,null,"Science",null,"Grade 6",null,"SPET IV",null,"IV-B - MIMAROPA",null,null,null,null,"51-55",null,null,null,"School Type",null,"School Size",null,null,null,"Kinder to Grade 12 attached to Tertiary",null,null,null,null,"Physics"]
["T",null,null,"Kindergarten",null,"Principal II",null,null,"Araling Panlipunan",null,"SPED",null,"SPET V",null,"V - Bicol Region",null,null,null,null,"Over 55 years old",null,null,null,"Urban",null,"Small",null,null,null,"Kindergarten; Grade 7-10",null,null,null,null,"Social Science"]
[7,5,null,"Elementary",null,"Principal I",null,null,"Edukasyon sa Pagpapakatao",null,"Multigrade",null,"Master Teacher I",null,"VI - Western Visayas",null,null,null,null,null,null,null,null,"Rural",null,"Medium",null,null,null,"Kindergarten; Grade 7-10; Grade 11-12",null,null,null,null,"Early Childhood Education"]
[6,4,null,"Junior High School",null,"Assistant Principal",null,null,"MAPEH",null,"Grade 7",null,"Master Teacher II",null,"VII - Central Visayas",null,null,null,null,null,null,null,null,null,null,"Large",null,null,null,"Kindergarten; Grade 11-12",null,null,null,null,"Values Education"]
[5,3,null,"Senior High School",null,"Head Teacher VI",null,null,"Music",null,"Grade 8",null,"Master Teacher III",null,"VIII - Eastern Visayas",null,null,null,null,null,null,null,null,null,null,"Very Large",null,null,null,"Grade 1-6",null,null,null,null,"SPED"]
[4,2,null,null,null,"Head Teacher V",null,null,"Arts",null,"Grade 9",null,"Master Teacher IV",null,"IX - Zamboanga Peninsula",null,null,null,null,null,null,null,null,null,null,null,null,null,null,"Grade 1-6; Grade 7-10",null,null,null,null,"Music"]
[3,1,null,null,null,"Head Teacher IV",null,null,"Physical Education",null,"Grade 10",null,"Special Science Teacher I",null,"X - Northern Mindanao",null,null,null,null,null,null,null,null,null,null,null,null,null,null,"Grade 1-6; Grade 11-12",null,null,null,null,"Arts"]
[null,null,null,null,null,"Head Teacher III",null,null,"Health",null,"Grade 11",null,"Special Science Teacher II",null,"XI - Davao Region",null,null,null,null,null,null,null,null,null,null,null,null,null,null,"Grade 1-6; Grade 7-10; Grade 11-12",null,null,null,null,"Physical Education"]
[null,null,null,null,null,"Head Teacher II",null,null,"TLE/EPP-HE",null,"Grade 12",null,"Special Science Teacher III",null,"XII - SOCCSKSARGEN",null,null,null,null,null,null,null,null,null,null,null,null,null,null,"Grade 7-10",null,null,null,null,"Health"]
[null,null,null,null,null,"Head Teacher I",null,null,"TLE/EPP-LE/Tech-Voc",null,"Multigrade",null,"Special Science Teacher IV",null,"XIII - CARAGA Region",null,null,null,null,null,null,null,null,null,null,null,null,null,null,"Grade 7-10; Grade 11-12",null,null,null,null,"TLE/HE/TVL"]
[null,null,null,null,null,"Master Teacher IV",null,null,"ALS",null,null,null,"Special Science Teacher V",null,"Bangsamoro Autonomous Region in Muslim Mindanao (BARMM)",null,null,null,null,null,null,null,null,null,null,null,null,null,null,"Grade 11-12"]
[null,null,null,null,null,"Master Teacher III",null,null,"IPED",null,null,null,null,null,null,null,null,null,null,null,null,null,null,null,null,null,null,null,null,"Community-based Learning Center"]
[null,null,null,null,null,"Master Teacher II",null,null,"Special Programs"]
[null,null,null,null,null,"Master Teacher I",null,null,"ACAD-ABM"]
[null,null,null,null,null,"Officer-in-Charge",null,null,"ACAD-HUMSS"]
[null,null,null,null,null,"Teacher-in-Charge",null,null,"ACAD-STEM"]
[null,null,null,null,null,null,null,null,"ACAD-General Academic"]
[null,null,null,null,null,null,null,null,"ACAD-Pre-Baccalaureate Maritime"]
[null,null,null,null,null,null,null,null,"TVL-Agri-Fishery"]
[null,null,null,null,null,null,null,null,"TVL-HE"]
[null,null,null,null,null,null,null,null,"TVL-ICT"]
[null,null,null,null,null,null,null,null,"TVL-Industrial Arts"]
[null,null,null,null,null,null,null,null,"TVL-Maritime"]
[null,null,null,null,null,null,null,null,"Sports"]
[null,null,null,null,null,null,null,null,"Arts and Design"]